{"text_format":"1","workbook":"xlsx","n_sheets":7,"sheets":["Voorblad","Keuzemenu","Kandidaat","Vacatures","Overzichten","Instellingen","Kandidaat Archief"],"not_rendered":{"charts":2,"images":9,"macros":1,"external_links":0,"defined_names":3,"comments":0,"pivot_tables":0},"unopened":[],"bounds":{"document_bytes":16777216,"sheet_cells":100000,"rows_first":2000,"rows_last":500,"rows_between":2000,"halvings":0,"cell_chars":16384,"cell_head_chars":4096},"cells_cut":0,"cells_raw":0,"read":"whole","date_system":"1900"}

{"sheet":"Voorblad","index":0,"n_rows":34,"n_cols":6,"rows_kept":34,"cut":false,"hidden":false,"merged":[[6,1,6,5]]}
[]
[]
[]
[null,"Werkt de bovenstaande knop niet, dan moet je eerst de onderstaande stappen doorlopen om de macro's te deblokkeren."]
[]
[null,"Dit bestand bevat macro's"]
[null,"In nieuwere versies van Excel is door Microsoft een extra beveiliging geplaatst op het openen van bestanden met macro’s. \nNaast dat macro's erg nuttig kunnen zijn worden ze ook misbruikt voor malware en ransomware. Door de macro's standaard te blokkeren wil Microsoft de strijd aan gaan tegen cybercriminaliteit."]
[null,"Dit Exceldocument bevat macro's om een goede werking van het bestand te garanderen. Deblokkeren van het bestand doet u als volgt:"]
[]
[null,"Stap 1. Blokkade opheffen",null,null,"Stap 2. Macro's inschakelen"]
[null,"a.","U moet het bestand opslaan op een lokale harde schijf (of OneDrive). ",null,"Nadat je de blokkering van het Excelbestand hebt opgeheven, is het (vaak) ook nog nodig om de macro’s in te schakelen."]
[null,"b.","Open Windows Verkenner en zoek het bestand op. "]
[null,"c.","Klik vervolgens met de rechtermuisknop op het bestand en kies Eigenschappen in het contextmenu. \nOnderaan het tabblad Algemeen ziet u een sectie Beveiliging. Schakel het selectievakje Blokkering opheffen in. \n",null,"a.","Dit zie je doordat je een pop-up krijgt met de melding: ‘Microsoft Office heeft een mogelijk beveiligingsprobleem geïdentificeerd.’ of door een gele balk bovenin je Excelbestand met daarin de tekst: ‘BEVEILIGINGSWAARSCHUWING \nMacro’s zijn uitgeschakeld.’ Zie ook afbeeldingen 2 en 3."]
[null,null,"En klik op OK. Zie ook afbeelding 1",null,"b.","In deze gevallen kun je de macro’s inschakelen door op de knop ‘Macro’s inschakelen’ te klikken in het pop-up scherm, of \nop de knop ‘Inhoud inschakelen’ in de gele balk"]
[null,null,"Wanneer u nu het bestand (opnieuw) opent zullen de macro's in het bestand werkzaam zijn."]
[null,null,"Afbeelding 1",null,null,"Afbeelding 2                                                                                                    Afbeelding 3"]
[]
[]
[]
[]
[]
[]
[]
[]
[]
[]
[]
[]
[]
[]
[]
[]
[]
[null,"Deze handleiding is ook terug te lezen via deze link."]

{"sheet":"Keuzemenu","index":1,"n_rows":14,"n_cols":2,"rows_kept":14,"cut":false,"hidden":false,"merged":[]}
[]
[]
[]
[]
[]
[]
[]
[]
[null,"Bestand aanpassen of"]
[null,"een bestand op maat?"]
[null,"Neem contact op via:"]
[]
["*","info@terzake-excel.nl"]
["(","0317 200 009"]

{"sheet":"Kandidaat","index":2,"n_rows":3,"n_cols":16,"rows_kept":3,"cut":false,"hidden":false,"merged":[]}
[]
[]
["Naam","Bron sollicitatie","Type kandidaat","Datum sollicitatie","Vacature","Status","E-mail","Telefoonnummer","Kandidaat score","Datum sollicitatie-gesprek","Interviewer/ Medewerker","tweede Interviewer/ Medewerker","Externe partij","Uren beschikbaar","Salarisindicatie kandidaat","Feedback/Opmerkingen"]

{"sheet":"Vacatures","index":3,"n_rows":3,"n_cols":10,"rows_kept":3,"cut":false,"hidden":false,"merged":[]}
[]
[]
["Vacature","Omschrijving","Datum uitgezet","Ondernomen acties","Belangrijke eisen","Salaris","Aantekeningen","Vacature Status","Contactpersoon","Laatste contact met contactpersoon"]

{"sheet":"Overzichten","index":4,"n_rows":354,"n_cols":9,"rows_kept":354,"cut":false,"hidden":false,"merged":[]}
[]
[]
[null,null,{"$f":"TODAY()","v":"2025-07-02"}]
[null,"Kandidaat","Datum interview","Interviewer/Medewerker","Interviewer/Medewerker 2",null,null,"Aangenomen kandidaten",{"$f":"COUNTIFS(Kandidaat!F:F,\"Afgewezen\")","v":0}]
[null,{"$f":"IF(C5=\"\",\"\",_xlfn.XLOOKUP(C5,Kandidaat!J:J,Kandidaat!A:A))","v":""},{"$f":"_xlfn._xlws.FILTER(_xlfn.IFS(Kandidaat!J4:J1000>=Overzichten!$C$3,Kandidaat!J4:J1000),Kandidaat!J4:J1000<>\"\",\"\")","v":""},{"$f":"IF(C5=\"\",\"\",_xlfn.XLOOKUP(C5,Kandidaat!J:J,Kandidaat!K:K))","v":""},{"$f":"IF(D5=\"\",\"\",_xlfn.XLOOKUP(D5,Kandidaat!K:K,Kandidaat!L:L))","v":""},null,null,"Afgewezen kandidaten",{"$f":"COUNTIFS(Kandidaat!F:F,\"Aangenomen\")","v":0}]
[null,{"$f":"IF(C6=\"\",\"\",_xlfn.XLOOKUP(C6,Kandidaat!J:J,Kandidaat!A:A))","v":""},null,{"$f":"IF(C6=\"\",\"\",_xlfn.XLOOKUP(C6,Kandidaat!J:J,Kandidaat!K:K))","v":""},{"$f":"IF(D6=\"\",\"\",_xlfn.XLOOKUP(D6,Kandidaat!K:K,Kandidaat!L:L))","v":""},null,null,"Open vacatures",{"$f":"COUNTIFS(Vacatures!H:H,\"Open\")","v":0}]
[null,{"$f":"IF(C7=\"\",\"\",_xlfn.XLOOKUP(C7,Kandidaat!J:J,Kandidaat!A:A))","v":""},null,{"$f":"IF(C7=\"\",\"\",_xlfn.XLOOKUP(C7,Kandidaat!J:J,Kandidaat!K:K))","v":""},{"$f":"IF(D7=\"\",\"\",_xlfn.XLOOKUP(D7,Kandidaat!K:K,Kandidaat!L:L))","v":""}]
[null,{"$f":"IF(C8=\"\",\"\",_xlfn.XLOOKUP(C8,Kandidaat!J:J,Kandidaat!A:A))","v":""},null,{"$f":"IF(C8=\"\",\"\",_xlfn.XLOOKUP(C8,Kandidaat!J:J,Kandidaat!K:K))","v":""},{"$f":"IF(D8=\"\",\"\",_xlfn.XLOOKUP(D8,Kandidaat!K:K,Kandidaat!L:L))","v":""}]
[null,{"$f":"IF(C9=\"\",\"\",_xlfn.XLOOKUP(C9,Kandidaat!J:J,Kandidaat!A:A))","v":""},null,{"$f":"IF(C9=\"\",\"\",_xlfn.XLOOKUP(C9,Kandidaat!J:J,Kandidaat!K:K))","v":""},{"$f":"IF(D9=\"\",\"\",_xlfn.XLOOKUP(D9,Kandidaat!K:K,Kandidaat!L:L))","v":""}]
[null,{"$f":"IF(C10=\"\",\"\",_xlfn.XLOOKUP(C10,Kandidaat!J:J,Kandidaat!A:A))","v":""},null,{"$f":"IF(C10=\"\",\"\",_xlfn.XLOOKUP(C10,Kandidaat!J:J,Kandidaat!K:K))","v":""},{"$f":"IF(D10=\"\",\"\",_xlfn.XLOOKUP(D10,Kandidaat!K:K,Kandidaat!L:L))","v":""}]
[null,{"$f":"IF(C11=\"\",\"\",_xlfn.XLOOKUP(C11,Kandidaat!J:J,Kandidaat!A:A))","v":""},null,{"$f":"IF(C11=\"\",\"\",_xlfn.XLOOKUP(C11,Kandidaat!J:J,Kandidaat!K:K))","v":""},{"$f":"IF(D11=\"\",\"\",_xlfn.XLOOKUP(D11,Kandidaat!K:K,Kandidaat!L:L))","v":""}]
[null,{"$f":"IF(C12=\"\",\"\",_xlfn.XLOOKUP(C12,Kandidaat!J:J,Kandidaat!A:A))","v":""},null,{"$f":"IF(C12=\"\",\"\",_xlfn.XLOOKUP(C12,Kandidaat!J:J,Kandidaat!K:K))","v":""},{"$f":"IF(D12=\"\",\"\",_xlfn.XLOOKUP(D12,Kandidaat!K:K,Kandidaat!L:L))","v":""}]
[null,{"$f":"IF(C13=\"\",\"\",_xlfn.XLOOKUP(C13,Kandidaat!J:J,Kandidaat!A:A))","v":""},null,{"$f":"IF(C13=\"\",\"\",_xlfn.XLOOKUP(C13,Kandidaat!J:J,Kandidaat!K:K))","v":""},{"$f":"IF(D13=\"\",\"\",_xlfn.XLOOKUP(D13,Kandidaat!K:K,Kandidaat!L:L))","v":""}]
[null,{"$f":"IF(C14=\"\",\"\",_xlfn.XLOOKUP(C14,Kandidaat!J:J,Kandidaat!A:A))","v":""},null,{"$f":"IF(C14=\"\",\"\",_xlfn.XLOOKUP(C14,Kandidaat!J:J,Kandidaat!K:K))","v":""},{"$f":"IF(D14=\"\",\"\",_xlfn.XLOOKUP(D14,Kandidaat!K:K,Kandidaat!L:L))","v":""}]
[null,{"$f":"IF(C15=\"\",\"\",_xlfn.XLOOKUP(C15,Kandidaat!J:J,Kandidaat!A:A))","v":""},null,{"$f":"IF(C15=\"\",\"\",_xlfn.XLOOKUP(C15,Kandidaat!J:J,Kandidaat!K:K))","v":""},{"$f":"IF(D15=\"\",\"\",_xlfn.XLOOKUP(D15,Kandidaat!K:K,Kandidaat!L:L))","v":""}]
[null,{"$f":"IF(C16=\"\",\"\",_xlfn.XLOOKUP(C16,Kandidaat!J:J,Kandidaat!A:A))","v":""},null,{"$f":"IF(C16=\"\",\"\",_xlfn.XLOOKUP(C16,Kandidaat!J:J,Kandidaat!K:K))","v":""},{"$f":"IF(D16=\"\",\"\",_xlfn.XLOOKUP(D16,Kandidaat!K:K,Kandidaat!L:L))","v":""}]
[null,{"$f":"IF(C17=\"\",\"\",_xlfn.XLOOKUP(C17,Kandidaat!J:J,Kandidaat!A:A))","v":""},null,{"$f":"IF(C17=\"\",\"\",_xlfn.XLOOKUP(C17,Kandidaat!J:J,Kandidaat!K:K))","v":""},{"$f":"IF(D17=\"\",\"\",_xlfn.XLOOKUP(D17,Kandidaat!K:K,Kandidaat!L:L))","v":""}]
[null,{"$f":"IF(C18=\"\",\"\",_xlfn.XLOOKUP(C18,Kandidaat!J:J,Kandidaat!A:A))","v":""},null,{"$f":"IF(C18=\"\",\"\",_xlfn.XLOOKUP(C18,Kandidaat!J:J,Kandidaat!K:K))","v":""},{"$f":"IF(D18=\"\",\"\",_xlfn.XLOOKUP(D18,Kandidaat!K:K,Kandidaat!L:L))","v":""}]
[null,{"$f":"IF(C19=\"\",\"\",_xlfn.XLOOKUP(C19,Kandidaat!J:J,Kandidaat!A:A))","v":""},null,{"$f":"IF(C19=\"\",\"\",_xlfn.XLOOKUP(C19,Kandidaat!J:J,Kandidaat!K:K))","v":""},{"$f":"IF(D19=\"\",\"\",_xlfn.XLOOKUP(D19,Kandidaat!K:K,Kandidaat!L:L))","v":""}]
[null,{"$f":"IF(C20=\"\",\"\",_xlfn.XLOOKUP(C20,Kandidaat!J:J,Kandidaat!A:A))","v":""},null,{"$f":"IF(C20=\"\",\"\",_xlfn.XLOOKUP(C20,Kandidaat!J:J,Kandidaat!K:K))","v":""},{"$f":"IF(D20=\"\",\"\",_xlfn.XLOOKUP(D20,Kandidaat!K:K,Kandidaat!L:L))","v":""}]
[null,{"$f":"IF(C21=\"\",\"\",_xlfn.XLOOKUP(C21,Kandidaat!J:J,Kandidaat!A:A))","v":""},null,{"$f":"IF(C21=\"\",\"\",_xlfn.XLOOKUP(C21,Kandidaat!J:J,Kandidaat!K:K))","v":""},{"$f":"IF(D21=\"\",\"\",_xlfn.XLOOKUP(D21,Kandidaat!K:K,Kandidaat!L:L))","v":""}]
[null,{"$f":"IF(C22=\"\",\"\",_xlfn.XLOOKUP(C22,Kandidaat!J:J,Kandidaat!A:A))","v":""},null,{"$f":"IF(C22=\"\",\"\",_xlfn.XLOOKUP(C22,Kandidaat!J:J,Kandidaat!K:K))","v":""},{"$f":"IF(D22=\"\",\"\",_xlfn.XLOOKUP(D22,Kandidaat!K:K,Kandidaat!L:L))","v":""}]
[null,{"$f":"IF(C23=\"\",\"\",_xlfn.XLOOKUP(C23,Kandidaat!J:J,Kandidaat!A:A))","v":""},null,{"$f":"IF(C23=\"\",\"\",_xlfn.XLOOKUP(C23,Kandidaat!J:J,Kandidaat!K:K))","v":""},{"$f":"IF(D23=\"\",\"\",_xlfn.XLOOKUP(D23,Kandidaat!K:K,Kandidaat!L:L))","v":""}]
[null,{"$f":"IF(C24=\"\",\"\",_xlfn.XLOOKUP(C24,Kandidaat!J:J,Kandidaat!A:A))","v":""},null,{"$f":"IF(C24=\"\",\"\",_xlfn.XLOOKUP(C24,Kandidaat!J:J,Kandidaat!K:K))","v":""},{"$f":"IF(D24=\"\",\"\",_xlfn.XLOOKUP(D24,Kandidaat!K:K,Kandidaat!L:L))","v":""}]
[null,{"$f":"IF(C25=\"\",\"\",_xlfn.XLOOKUP(C25,Kandidaat!J:J,Kandidaat!A:A))","v":""},null,{"$f":"IF(C25=\"\",\"\",_xlfn.XLOOKUP(C25,Kandidaat!J:J,Kandidaat!K:K))","v":""},{"$f":"IF(D25=\"\",\"\",_xlfn.XLOOKUP(D25,Kandidaat!K:K,Kandidaat!L:L))","v":""}]
[null,{"$f":"IF(C26=\"\",\"\",_xlfn.XLOOKUP(C26,Kandidaat!J:J,Kandidaat!A:A))","v":""},null,{"$f":"IF(C26=\"\",\"\",_xlfn.XLOOKUP(C26,Kandidaat!J:J,Kandidaat!K:K))","v":""},{"$f":"IF(D26=\"\",\"\",_xlfn.XLOOKUP(D26,Kandidaat!K:K,Kandidaat!L:L))","v":""}]
[null,{"$f":"IF(C27=\"\",\"\",_xlfn.XLOOKUP(C27,Kandidaat!J:J,Kandidaat!A:A))","v":""},null,{"$f":"IF(C27=\"\",\"\",_xlfn.XLOOKUP(C27,Kandidaat!J:J,Kandidaat!K:K))","v":""},{"$f":"IF(D27=\"\",\"\",_xlfn.XLOOKUP(D27,Kandidaat!K:K,Kandidaat!L:L))","v":""}]
[null,{"$f":"IF(C28=\"\",\"\",_xlfn.XLOOKUP(C28,Kandidaat!J:J,Kandidaat!A:A))","v":""},null,{"$f":"IF(C28=\"\",\"\",_xlfn.XLOOKUP(C28,Kandidaat!J:J,Kandidaat!K:K))","v":""},{"$f":"IF(D28=\"\",\"\",_xlfn.XLOOKUP(D28,Kandidaat!K:K,Kandidaat!L:L))","v":""}]
[null,{"$f":"IF(C29=\"\",\"\",_xlfn.XLOOKUP(C29,Kandidaat!J:J,Kandidaat!A:A))","v":""},null,{"$f":"IF(C29=\"\",\"\",_xlfn.XLOOKUP(C29,Kandidaat!J:J,Kandidaat!K:K))","v":""},{"$f":"IF(D29=\"\",\"\",_xlfn.XLOOKUP(D29,Kandidaat!K:K,Kandidaat!L:L))","v":""}]
[null,{"$f":"IF(C30=\"\",\"\",_xlfn.XLOOKUP(C30,Kandidaat!J:J,Kandidaat!A:A))","v":""},null,{"$f":"IF(C30=\"\",\"\",_xlfn.XLOOKUP(C30,Kandidaat!J:J,Kandidaat!K:K))","v":""},{"$f":"IF(D30=\"\",\"\",_xlfn.XLOOKUP(D30,Kandidaat!K:K,Kandidaat!L:L))","v":""}]
[null,{"$f":"IF(C31=\"\",\"\",_xlfn.XLOOKUP(C31,Kandidaat!J:J,Kandidaat!A:A))","v":""},null,{"$f":"IF(C31=\"\",\"\",_xlfn.XLOOKUP(C31,Kandidaat!J:J,Kandidaat!K:K))","v":""},{"$f":"IF(D31=\"\",\"\",_xlfn.XLOOKUP(D31,Kandidaat!K:K,Kandidaat!L:L))","v":""}]
[null,{"$f":"IF(C32=\"\",\"\",_xlfn.XLOOKUP(C32,Kandidaat!J:J,Kandidaat!A:A))","v":""},null,{"$f":"IF(C32=\"\",\"\",_xlfn.XLOOKUP(C32,Kandidaat!J:J,Kandidaat!K:K))","v":""},{"$f":"IF(D32=\"\",\"\",_xlfn.XLOOKUP(D32,Kandidaat!K:K,Kandidaat!L:L))","v":""}]
[null,{"$f":"IF(C33=\"\",\"\",_xlfn.XLOOKUP(C33,Kandidaat!J:J,Kandidaat!A:A))","v":""},null,{"$f":"IF(C33=\"\",\"\",_xlfn.XLOOKUP(C33,Kandidaat!J:J,Kandidaat!K:K))","v":""},{"$f":"IF(D33=\"\",\"\",_xlfn.XLOOKUP(D33,Kandidaat!K:K,Kandidaat!L:L))","v":""}]
[null,{"$f":"IF(C34=\"\",\"\",_xlfn.XLOOKUP(C34,Kandidaat!J:J,Kandidaat!A:A))","v":""},null,{"$f":"IF(C34=\"\",\"\",_xlfn.XLOOKUP(C34,Kandidaat!J:J,Kandidaat!K:K))","v":""},{"$f":"IF(D34=\"\",\"\",_xlfn.XLOOKUP(D34,Kandidaat!K:K,Kandidaat!L:L))","v":""}]
[null,{"$f":"IF(C35=\"\",\"\",_xlfn.XLOOKUP(C35,Kandidaat!J:J,Kandidaat!A:A))","v":""},null,{"$f":"IF(C35=\"\",\"\",_xlfn.XLOOKUP(C35,Kandidaat!J:J,Kandidaat!K:K))","v":""},{"$f":"IF(D35=\"\",\"\",_xlfn.XLOOKUP(D35,Kandidaat!K:K,Kandidaat!L:L))","v":""}]
[null,{"$f":"IF(C36=\"\",\"\",_xlfn.XLOOKUP(C36,Kandidaat!J:J,Kandidaat!A:A))","v":""},null,{"$f":"IF(C36=\"\",\"\",_xlfn.XLOOKUP(C36,Kandidaat!J:J,Kandidaat!K:K))","v":""},{"$f":"IF(D36=\"\",\"\",_xlfn.XLOOKUP(D36,Kandidaat!K:K,Kandidaat!L:L))","v":""}]
[null,{"$f":"IF(C37=\"\",\"\",_xlfn.XLOOKUP(C37,Kandidaat!J:J,Kandidaat!A:A))","v":""},null,{"$f":"IF(C37=\"\",\"\",_xlfn.XLOOKUP(C37,Kandidaat!J:J,Kandidaat!K:K))","v":""},{"$f":"IF(D37=\"\",\"\",_xlfn.XLOOKUP(D37,Kandidaat!K:K,Kandidaat!L:L))","v":""}]
[null,{"$f":"IF(C38=\"\",\"\",_xlfn.XLOOKUP(C38,Kandidaat!J:J,Kandidaat!A:A))","v":""},null,{"$f":"IF(C38=\"\",\"\",_xlfn.XLOOKUP(C38,Kandidaat!J:J,Kandidaat!K:K))","v":""},{"$f":"IF(D38=\"\",\"\",_xlfn.XLOOKUP(D38,Kandidaat!K:K,Kandidaat!L:L))","v":""}]
[null,{"$f":"IF(C39=\"\",\"\",_xlfn.XLOOKUP(C39,Kandidaat!J:J,Kandidaat!A:A))","v":""},null,{"$f":"IF(C39=\"\",\"\",_xlfn.XLOOKUP(C39,Kandidaat!J:J,Kandidaat!K:K))","v":""},{"$f":"IF(D39=\"\",\"\",_xlfn.XLOOKUP(D39,Kandidaat!K:K,Kandidaat!L:L))","v":""}]
[null,{"$f":"IF(C40=\"\",\"\",_xlfn.XLOOKUP(C40,Kandidaat!J:J,Kandidaat!A:A))","v":""},null,{"$f":"IF(C40=\"\",\"\",_xlfn.XLOOKUP(C40,Kandidaat!J:J,Kandidaat!K:K))","v":""},{"$f":"IF(D40=\"\",\"\",_xlfn.XLOOKUP(D40,Kandidaat!K:K,Kandidaat!L:L))","v":""}]
[null,{"$f":"IF(C41=\"\",\"\",_xlfn.XLOOKUP(C41,Kandidaat!J:J,Kandidaat!A:A))","v":""},null,{"$f":"IF(C41=\"\",\"\",_xlfn.XLOOKUP(C41,Kandidaat!J:J,Kandidaat!K:K))","v":""},{"$f":"IF(D41=\"\",\"\",_xlfn.XLOOKUP(D41,Kandidaat!K:K,Kandidaat!L:L))","v":""}]
[null,{"$f":"IF(C42=\"\",\"\",_xlfn.XLOOKUP(C42,Kandidaat!J:J,Kandidaat!A:A))","v":""},null,{"$f":"IF(C42=\"\",\"\",_xlfn.XLOOKUP(C42,Kandidaat!J:J,Kandidaat!K:K))","v":""},{"$f":"IF(D42=\"\",\"\",_xlfn.XLOOKUP(D42,Kandidaat!K:K,Kandidaat!L:L))","v":""}]
[null,{"$f":"IF(C43=\"\",\"\",_xlfn.XLOOKUP(C43,Kandidaat!J:J,Kandidaat!A:A))","v":""},null,{"$f":"IF(C43=\"\",\"\",_xlfn.XLOOKUP(C43,Kandidaat!J:J,Kandidaat!K:K))","v":""},{"$f":"IF(D43=\"\",\"\",_xlfn.XLOOKUP(D43,Kandidaat!K:K,Kandidaat!L:L))","v":""}]
[null,{"$f":"IF(C44=\"\",\"\",_xlfn.XLOOKUP(C44,Kandidaat!J:J,Kandidaat!A:A))","v":""},null,{"$f":"IF(C44=\"\",\"\",_xlfn.XLOOKUP(C44,Kandidaat!J:J,Kandidaat!K:K))","v":""},{"$f":"IF(D44=\"\",\"\",_xlfn.XLOOKUP(D44,Kandidaat!K:K,Kandidaat!L:L))","v":""}]
[null,{"$f":"IF(C45=\"\",\"\",_xlfn.XLOOKUP(C45,Kandidaat!J:J,Kandidaat!A:A))","v":""},null,{"$f":"IF(C45=\"\",\"\",_xlfn.XLOOKUP(C45,Kandidaat!J:J,Kandidaat!K:K))","v":""},{"$f":"IF(D45=\"\",\"\",_xlfn.XLOOKUP(D45,Kandidaat!K:K,Kandidaat!L:L))","v":""}]
[null,{"$f":"IF(C46=\"\",\"\",_xlfn.XLOOKUP(C46,Kandidaat!J:J,Kandidaat!A:A))","v":""},null,{"$f":"IF(C46=\"\",\"\",_xlfn.XLOOKUP(C46,Kandidaat!J:J,Kandidaat!K:K))","v":""},{"$f":"IF(D46=\"\",\"\",_xlfn.XLOOKUP(D46,Kandidaat!K:K,Kandidaat!L:L))","v":""}]
[null,{"$f":"IF(C47=\"\",\"\",_xlfn.XLOOKUP(C47,Kandidaat!J:J,Kandidaat!A:A))","v":""},null,{"$f":"IF(C47=\"\",\"\",_xlfn.XLOOKUP(C47,Kandidaat!J:J,Kandidaat!K:K))","v":""},{"$f":"IF(D47=\"\",\"\",_xlfn.XLOOKUP(D47,Kandidaat!K:K,Kandidaat!L:L))","v":""}]
[null,{"$f":"IF(C48=\"\",\"\",_xlfn.XLOOKUP(C48,Kandidaat!J:J,Kandidaat!A:A))","v":""},null,{"$f":"IF(C48=\"\",\"\",_xlfn.XLOOKUP(C48,Kandidaat!J:J,Kandidaat!K:K))","v":""},{"$f":"IF(D48=\"\",\"\",_xlfn.XLOOKUP(D48,Kandidaat!K:K,Kandidaat!L:L))","v":""}]
[null,{"$f":"IF(C49=\"\",\"\",_xlfn.XLOOKUP(C49,Kandidaat!J:J,Kandidaat!A:A))","v":""},null,{"$f":"IF(C49=\"\",\"\",_xlfn.XLOOKUP(C49,Kandidaat!J:J,Kandidaat!K:K))","v":""},{"$f":"IF(D49=\"\",\"\",_xlfn.XLOOKUP(D49,Kandidaat!K:K,Kandidaat!L:L))","v":""}]
[null,{"$f":"IF(C50=\"\",\"\",_xlfn.XLOOKUP(C50,Kandidaat!J:J,Kandidaat!A:A))","v":""},null,{"$f":"IF(C50=\"\",\"\",_xlfn.XLOOKUP(C50,Kandidaat!J:J,Kandidaat!K:K))","v":""},{"$f":"IF(D50=\"\",\"\",_xlfn.XLOOKUP(D50,Kandidaat!K:K,Kandidaat!L:L))","v":""}]
[null,{"$f":"IF(C51=\"\",\"\",_xlfn.XLOOKUP(C51,Kandidaat!J:J,Kandidaat!A:A))","v":""},null,{"$f":"IF(C51=\"\",\"\",_xlfn.XLOOKUP(C51,Kandidaat!J:J,Kandidaat!K:K))","v":""},{"$f":"IF(D51=\"\",\"\",_xlfn.XLOOKUP(D51,Kandidaat!K:K,Kandidaat!L:L))","v":""}]
[null,{"$f":"IF(C52=\"\",\"\",_xlfn.XLOOKUP(C52,Kandidaat!J:J,Kandidaat!A:A))","v":""},null,{"$f":"IF(C52=\"\",\"\",_xlfn.XLOOKUP(C52,Kandidaat!J:J,Kandidaat!K:K))","v":""},{"$f":"IF(D52=\"\",\"\",_xlfn.XLOOKUP(D52,Kandidaat!K:K,Kandidaat!L:L))","v":""}]
[null,{"$f":"IF(C53=\"\",\"\",_xlfn.XLOOKUP(C53,Kandidaat!J:J,Kandidaat!A:A))","v":""},null,{"$f":"IF(C53=\"\",\"\",_xlfn.XLOOKUP(C53,Kandidaat!J:J,Kandidaat!K:K))","v":""},{"$f":"IF(D53=\"\",\"\",_xlfn.XLOOKUP(D53,Kandidaat!K:K,Kandidaat!L:L))","v":""}]
[null,{"$f":"IF(C54=\"\",\"\",_xlfn.XLOOKUP(C54,Kandidaat!J:J,Kandidaat!A:A))","v":""},null,{"$f":"IF(C54=\"\",\"\",_xlfn.XLOOKUP(C54,Kandidaat!J:J,Kandidaat!K:K))","v":""},{"$f":"IF(D54=\"\",\"\",_xlfn.XLOOKUP(D54,Kandidaat!K:K,Kandidaat!L:L))","v":""}]
[null,{"$f":"IF(C55=\"\",\"\",_xlfn.XLOOKUP(C55,Kandidaat!J:J,Kandidaat!A:A))","v":""},null,{"$f":"IF(C55=\"\",\"\",_xlfn.XLOOKUP(C55,Kandidaat!J:J,Kandidaat!K:K))","v":""},{"$f":"IF(D55=\"\",\"\",_xlfn.XLOOKUP(D55,Kandidaat!K:K,Kandidaat!L:L))","v":""}]
[null,{"$f":"IF(C56=\"\",\"\",_xlfn.XLOOKUP(C56,Kandidaat!J:J,Kandidaat!A:A))","v":""},null,{"$f":"IF(C56=\"\",\"\",_xlfn.XLOOKUP(C56,Kandidaat!J:J,Kandidaat!K:K))","v":""},{"$f":"IF(D56=\"\",\"\",_xlfn.XLOOKUP(D56,Kandidaat!K:K,Kandidaat!L:L))","v":""}]
[null,{"$f":"IF(C57=\"\",\"\",_xlfn.XLOOKUP(C57,Kandidaat!J:J,Kandidaat!A:A))","v":""},null,{"$f":"IF(C57=\"\",\"\",_xlfn.XLOOKUP(C57,Kandidaat!J:J,Kandidaat!K:K))","v":""},{"$f":"IF(D57=\"\",\"\",_xlfn.XLOOKUP(D57,Kandidaat!K:K,Kandidaat!L:L))","v":""}]
[null,{"$f":"IF(C58=\"\",\"\",_xlfn.XLOOKUP(C58,Kandidaat!J:J,Kandidaat!A:A))","v":""},null,{"$f":"IF(C58=\"\",\"\",_xlfn.XLOOKUP(C58,Kandidaat!J:J,Kandidaat!K:K))","v":""},{"$f":"IF(D58=\"\",\"\",_xlfn.XLOOKUP(D58,Kandidaat!K:K,Kandidaat!L:L))","v":""}]
[null,{"$f":"IF(C59=\"\",\"\",_xlfn.XLOOKUP(C59,Kandidaat!J:J,Kandidaat!A:A))","v":""},null,{"$f":"IF(C59=\"\",\"\",_xlfn.XLOOKUP(C59,Kandidaat!J:J,Kandidaat!K:K))","v":""},{"$f":"IF(D59=\"\",\"\",_xlfn.XLOOKUP(D59,Kandidaat!K:K,Kandidaat!L:L))","v":""}]
[null,{"$f":"IF(C60=\"\",\"\",_xlfn.XLOOKUP(C60,Kandidaat!J:J,Kandidaat!A:A))","v":""},null,{"$f":"IF(C60=\"\",\"\",_xlfn.XLOOKUP(C60,Kandidaat!J:J,Kandidaat!K:K))","v":""},{"$f":"IF(D60=\"\",\"\",_xlfn.XLOOKUP(D60,Kandidaat!K:K,Kandidaat!L:L))","v":""}]
[null,{"$f":"IF(C61=\"\",\"\",_xlfn.XLOOKUP(C61,Kandidaat!J:J,Kandidaat!A:A))","v":""},null,{"$f":"IF(C61=\"\",\"\",_xlfn.XLOOKUP(C61,Kandidaat!J:J,Kandidaat!K:K))","v":""},{"$f":"IF(D61=\"\",\"\",_xlfn.XLOOKUP(D61,Kandidaat!K:K,Kandidaat!L:L))","v":""}]
[null,{"$f":"IF(C62=\"\",\"\",_xlfn.XLOOKUP(C62,Kandidaat!J:J,Kandidaat!A:A))","v":""},null,{"$f":"IF(C62=\"\",\"\",_xlfn.XLOOKUP(C62,Kandidaat!J:J,Kandidaat!K:K))","v":""},{"$f":"IF(D62=\"\",\"\",_xlfn.XLOOKUP(D62,Kandidaat!K:K,Kandidaat!L:L))","v":""}]
[null,{"$f":"IF(C63=\"\",\"\",_xlfn.XLOOKUP(C63,Kandidaat!J:J,Kandidaat!A:A))","v":""},null,{"$f":"IF(C63=\"\",\"\",_xlfn.XLOOKUP(C63,Kandidaat!J:J,Kandidaat!K:K))","v":""},{"$f":"IF(D63=\"\",\"\",_xlfn.XLOOKUP(D63,Kandidaat!K:K,Kandidaat!L:L))","v":""}]
[null,{"$f":"IF(C64=\"\",\"\",_xlfn.XLOOKUP(C64,Kandidaat!J:J,Kandidaat!A:A))","v":""},null,{"$f":"IF(C64=\"\",\"\",_xlfn.XLOOKUP(C64,Kandidaat!J:J,Kandidaat!K:K))","v":""},{"$f":"IF(D64=\"\",\"\",_xlfn.XLOOKUP(D64,Kandidaat!K:K,Kandidaat!L:L))","v":""}]
[null,{"$f":"IF(C65=\"\",\"\",_xlfn.XLOOKUP(C65,Kandidaat!J:J,Kandidaat!A:A))","v":""},null,{"$f":"IF(C65=\"\",\"\",_xlfn.XLOOKUP(C65,Kandidaat!J:J,Kandidaat!K:K))","v":""},{"$f":"IF(D65=\"\",\"\",_xlfn.XLOOKUP(D65,Kandidaat!K:K,Kandidaat!L:L))","v":""}]
[null,{"$f":"IF(C66=\"\",\"\",_xlfn.XLOOKUP(C66,Kandidaat!J:J,Kandidaat!A:A))","v":""},null,{"$f":"IF(C66=\"\",\"\",_xlfn.XLOOKUP(C66,Kandidaat!J:J,Kandidaat!K:K))","v":""},{"$f":"IF(D66=\"\",\"\",_xlfn.XLOOKUP(D66,Kandidaat!K:K,Kandidaat!L:L))","v":""}]
[null,{"$f":"IF(C67=\"\",\"\",_xlfn.XLOOKUP(C67,Kandidaat!J:J,Kandidaat!A:A))","v":""},null,{"$f":"IF(C67=\"\",\"\",_xlfn.XLOOKUP(C67,Kandidaat!J:J,Kandidaat!K:K))","v":""},{"$f":"IF(D67=\"\",\"\",_xlfn.XLOOKUP(D67,Kandidaat!K:K,Kandidaat!L:L))","v":""}]
[null,{"$f":"IF(C68=\"\",\"\",_xlfn.XLOOKUP(C68,Kandidaat!J:J,Kandidaat!A:A))","v":""},null,{"$f":"IF(C68=\"\",\"\",_xlfn.XLOOKUP(C68,Kandidaat!J:J,Kandidaat!K:K))","v":""},{"$f":"IF(D68=\"\",\"\",_xlfn.XLOOKUP(D68,Kandidaat!K:K,Kandidaat!L:L))","v":""}]
[null,{"$f":"IF(C69=\"\",\"\",_xlfn.XLOOKUP(C69,Kandidaat!J:J,Kandidaat!A:A))","v":""},null,{"$f":"IF(C69=\"\",\"\",_xlfn.XLOOKUP(C69,Kandidaat!J:J,Kandidaat!K:K))","v":""},{"$f":"IF(D69=\"\",\"\",_xlfn.XLOOKUP(D69,Kandidaat!K:K,Kandidaat!L:L))","v":""}]
[null,{"$f":"IF(C70=\"\",\"\",_xlfn.XLOOKUP(C70,Kandidaat!J:J,Kandidaat!A:A))","v":""},null,{"$f":"IF(C70=\"\",\"\",_xlfn.XLOOKUP(C70,Kandidaat!J:J,Kandidaat!K:K))","v":""},{"$f":"IF(D70=\"\",\"\",_xlfn.XLOOKUP(D70,Kandidaat!K:K,Kandidaat!L:L))","v":""}]
[null,{"$f":"IF(C71=\"\",\"\",_xlfn.XLOOKUP(C71,Kandidaat!J:J,Kandidaat!A:A))","v":""},null,{"$f":"IF(C71=\"\",\"\",_xlfn.XLOOKUP(C71,Kandidaat!J:J,Kandidaat!K:K))","v":""},{"$f":"IF(D71=\"\",\"\",_xlfn.XLOOKUP(D71,Kandidaat!K:K,Kandidaat!L:L))","v":""}]
[null,{"$f":"IF(C72=\"\",\"\",_xlfn.XLOOKUP(C72,Kandidaat!J:J,Kandidaat!A:A))","v":""},null,{"$f":"IF(C72=\"\",\"\",_xlfn.XLOOKUP(C72,Kandidaat!J:J,Kandidaat!K:K))","v":""},{"$f":"IF(D72=\"\",\"\",_xlfn.XLOOKUP(D72,Kandidaat!K:K,Kandidaat!L:L))","v":""}]
[null,{"$f":"IF(C73=\"\",\"\",_xlfn.XLOOKUP(C73,Kandidaat!J:J,Kandidaat!A:A))","v":""},null,{"$f":"IF(C73=\"\",\"\",_xlfn.XLOOKUP(C73,Kandidaat!J:J,Kandidaat!K:K))","v":""},{"$f":"IF(D73=\"\",\"\",_xlfn.XLOOKUP(D73,Kandidaat!K:K,Kandidaat!L:L))","v":""}]
[null,{"$f":"IF(C74=\"\",\"\",_xlfn.XLOOKUP(C74,Kandidaat!J:J,Kandidaat!A:A))","v":""},null,{"$f":"IF(C74=\"\",\"\",_xlfn.XLOOKUP(C74,Kandidaat!J:J,Kandidaat!K:K))","v":""},{"$f":"IF(D74=\"\",\"\",_xlfn.XLOOKUP(D74,Kandidaat!K:K,Kandidaat!L:L))","v":""}]
[null,{"$f":"IF(C75=\"\",\"\",_xlfn.XLOOKUP(C75,Kandidaat!J:J,Kandidaat!A:A))","v":""},null,{"$f":"IF(C75=\"\",\"\",_xlfn.XLOOKUP(C75,Kandidaat!J:J,Kandidaat!K:K))","v":""},{"$f":"IF(D75=\"\",\"\",_xlfn.XLOOKUP(D75,Kandidaat!K:K,Kandidaat!L:L))","v":""}]
[null,{"$f":"IF(C76=\"\",\"\",_xlfn.XLOOKUP(C76,Kandidaat!J:J,Kandidaat!A:A))","v":""},null,{"$f":"IF(C76=\"\",\"\",_xlfn.XLOOKUP(C76,Kandidaat!J:J,Kandidaat!K:K))","v":""},{"$f":"IF(D76=\"\",\"\",_xlfn.XLOOKUP(D76,Kandidaat!K:K,Kandidaat!L:L))","v":""}]
[null,{"$f":"IF(C77=\"\",\"\",_xlfn.XLOOKUP(C77,Kandidaat!J:J,Kandidaat!A:A))","v":""},null,{"$f":"IF(C77=\"\",\"\",_xlfn.XLOOKUP(C77,Kandidaat!J:J,Kandidaat!K:K))","v":""},{"$f":"IF(D77=\"\",\"\",_xlfn.XLOOKUP(D77,Kandidaat!K:K,Kandidaat!L:L))","v":""}]
[null,{"$f":"IF(C78=\"\",\"\",_xlfn.XLOOKUP(C78,Kandidaat!J:J,Kandidaat!A:A))","v":""},null,{"$f":"IF(C78=\"\",\"\",_xlfn.XLOOKUP(C78,Kandidaat!J:J,Kandidaat!K:K))","v":""},{"$f":"IF(D78=\"\",\"\",_xlfn.XLOOKUP(D78,Kandidaat!K:K,Kandidaat!L:L))","v":""}]
[null,{"$f":"IF(C79=\"\",\"\",_xlfn.XLOOKUP(C79,Kandidaat!J:J,Kandidaat!A:A))","v":""},null,{"$f":"IF(C79=\"\",\"\",_xlfn.XLOOKUP(C79,Kandidaat!J:J,Kandidaat!K:K))","v":""},{"$f":"IF(D79=\"\",\"\",_xlfn.XLOOKUP(D79,Kandidaat!K:K,Kandidaat!L:L))","v":""}]
[null,{"$f":"IF(C80=\"\",\"\",_xlfn.XLOOKUP(C80,Kandidaat!J:J,Kandidaat!A:A))","v":""},null,{"$f":"IF(C80=\"\",\"\",_xlfn.XLOOKUP(C80,Kandidaat!J:J,Kandidaat!K:K))","v":""},{"$f":"IF(D80=\"\",\"\",_xlfn.XLOOKUP(D80,Kandidaat!K:K,Kandidaat!L:L))","v":""}]
[null,{"$f":"IF(C81=\"\",\"\",_xlfn.XLOOKUP(C81,Kandidaat!J:J,Kandidaat!A:A))","v":""},null,{"$f":"IF(C81=\"\",\"\",_xlfn.XLOOKUP(C81,Kandidaat!J:J,Kandidaat!K:K))","v":""},{"$f":"IF(D81=\"\",\"\",_xlfn.XLOOKUP(D81,Kandidaat!K:K,Kandidaat!L:L))","v":""}]
[null,{"$f":"IF(C82=\"\",\"\",_xlfn.XLOOKUP(C82,Kandidaat!J:J,Kandidaat!A:A))","v":""},null,{"$f":"IF(C82=\"\",\"\",_xlfn.XLOOKUP(C82,Kandidaat!J:J,Kandidaat!K:K))","v":""},{"$f":"IF(D82=\"\",\"\",_xlfn.XLOOKUP(D82,Kandidaat!K:K,Kandidaat!L:L))","v":""}]
[null,{"$f":"IF(C83=\"\",\"\",_xlfn.XLOOKUP(C83,Kandidaat!J:J,Kandidaat!A:A))","v":""},null,{"$f":"IF(C83=\"\",\"\",_xlfn.XLOOKUP(C83,Kandidaat!J:J,Kandidaat!K:K))","v":""},{"$f":"IF(D83=\"\",\"\",_xlfn.XLOOKUP(D83,Kandidaat!K:K,Kandidaat!L:L))","v":""}]
[null,{"$f":"IF(C84=\"\",\"\",_xlfn.XLOOKUP(C84,Kandidaat!J:J,Kandidaat!A:A))","v":""},null,{"$f":"IF(C84=\"\",\"\",_xlfn.XLOOKUP(C84,Kandidaat!J:J,Kandidaat!K:K))","v":""},{"$f":"IF(D84=\"\",\"\",_xlfn.XLOOKUP(D84,Kandidaat!K:K,Kandidaat!L:L))","v":""}]
[null,{"$f":"IF(C85=\"\",\"\",_xlfn.XLOOKUP(C85,Kandidaat!J:J,Kandidaat!A:A))","v":""},null,{"$f":"IF(C85=\"\",\"\",_xlfn.XLOOKUP(C85,Kandidaat!J:J,Kandidaat!K:K))","v":""},{"$f":"IF(D85=\"\",\"\",_xlfn.XLOOKUP(D85,Kandidaat!K:K,Kandidaat!L:L))","v":""}]
[null,{"$f":"IF(C86=\"\",\"\",_xlfn.XLOOKUP(C86,Kandidaat!J:J,Kandidaat!A:A))","v":""},null,{"$f":"IF(C86=\"\",\"\",_xlfn.XLOOKUP(C86,Kandidaat!J:J,Kandidaat!K:K))","v":""},{"$f":"IF(D86=\"\",\"\",_xlfn.XLOOKUP(D86,Kandidaat!K:K,Kandidaat!L:L))","v":""}]
[null,{"$f":"IF(C87=\"\",\"\",_xlfn.XLOOKUP(C87,Kandidaat!J:J,Kandidaat!A:A))","v":""},null,{"$f":"IF(C87=\"\",\"\",_xlfn.XLOOKUP(C87,Kandidaat!J:J,Kandidaat!K:K))","v":""},{"$f":"IF(D87=\"\",\"\",_xlfn.XLOOKUP(D87,Kandidaat!K:K,Kandidaat!L:L))","v":""}]
[null,{"$f":"IF(C88=\"\",\"\",_xlfn.XLOOKUP(C88,Kandidaat!J:J,Kandidaat!A:A))","v":""},null,{"$f":"IF(C88=\"\",\"\",_xlfn.XLOOKUP(C88,Kandidaat!J:J,Kandidaat!K:K))","v":""},{"$f":"IF(D88=\"\",\"\",_xlfn.XLOOKUP(D88,Kandidaat!K:K,Kandidaat!L:L))","v":""}]
[null,{"$f":"IF(C89=\"\",\"\",_xlfn.XLOOKUP(C89,Kandidaat!J:J,Kandidaat!A:A))","v":""},null,{"$f":"IF(C89=\"\",\"\",_xlfn.XLOOKUP(C89,Kandidaat!J:J,Kandidaat!K:K))","v":""},{"$f":"IF(D89=\"\",\"\",_xlfn.XLOOKUP(D89,Kandidaat!K:K,Kandidaat!L:L))","v":""}]
[null,{"$f":"IF(C90=\"\",\"\",_xlfn.XLOOKUP(C90,Kandidaat!J:J,Kandidaat!A:A))","v":""},null,{"$f":"IF(C90=\"\",\"\",_xlfn.XLOOKUP(C90,Kandidaat!J:J,Kandidaat!K:K))","v":""},{"$f":"IF(D90=\"\",\"\",_xlfn.XLOOKUP(D90,Kandidaat!K:K,Kandidaat!L:L))","v":""}]
[null,{"$f":"IF(C91=\"\",\"\",_xlfn.XLOOKUP(C91,Kandidaat!J:J,Kandidaat!A:A))","v":""},null,{"$f":"IF(C91=\"\",\"\",_xlfn.XLOOKUP(C91,Kandidaat!J:J,Kandidaat!K:K))","v":""},{"$f":"IF(D91=\"\",\"\",_xlfn.XLOOKUP(D91,Kandidaat!K:K,Kandidaat!L:L))","v":""}]
[null,{"$f":"IF(C92=\"\",\"\",_xlfn.XLOOKUP(C92,Kandidaat!J:J,Kandidaat!A:A))","v":""},null,{"$f":"IF(C92=\"\",\"\",_xlfn.XLOOKUP(C92,Kandidaat!J:J,Kandidaat!K:K))","v":""},{"$f":"IF(D92=\"\",\"\",_xlfn.XLOOKUP(D92,Kandidaat!K:K,Kandidaat!L:L))","v":""}]
[null,{"$f":"IF(C93=\"\",\"\",_xlfn.XLOOKUP(C93,Kandidaat!J:J,Kandidaat!A:A))","v":""},null,{"$f":"IF(C93=\"\",\"\",_xlfn.XLOOKUP(C93,Kandidaat!J:J,Kandidaat!K:K))","v":""},{"$f":"IF(D93=\"\",\"\",_xlfn.XLOOKUP(D93,Kandidaat!K:K,Kandidaat!L:L))","v":""}]
[null,{"$f":"IF(C94=\"\",\"\",_xlfn.XLOOKUP(C94,Kandidaat!J:J,Kandidaat!A:A))","v":""},null,{"$f":"IF(C94=\"\",\"\",_xlfn.XLOOKUP(C94,Kandidaat!J:J,Kandidaat!K:K))","v":""},{"$f":"IF(D94=\"\",\"\",_xlfn.XLOOKUP(D94,Kandidaat!K:K,Kandidaat!L:L))","v":""}]
[null,{"$f":"IF(C95=\"\",\"\",_xlfn.XLOOKUP(C95,Kandidaat!J:J,Kandidaat!A:A))","v":""},null,{"$f":"IF(C95=\"\",\"\",_xlfn.XLOOKUP(C95,Kandidaat!J:J,Kandidaat!K:K))","v":""},{"$f":"IF(D95=\"\",\"\",_xlfn.XLOOKUP(D95,Kandidaat!K:K,Kandidaat!L:L))","v":""}]
[null,{"$f":"IF(C96=\"\",\"\",_xlfn.XLOOKUP(C96,Kandidaat!J:J,Kandidaat!A:A))","v":""},null,{"$f":"IF(C96=\"\",\"\",_xlfn.XLOOKUP(C96,Kandidaat!J:J,Kandidaat!K:K))","v":""},{"$f":"IF(D96=\"\",\"\",_xlfn.XLOOKUP(D96,Kandidaat!K:K,Kandidaat!L:L))","v":""}]
[null,{"$f":"IF(C97=\"\",\"\",_xlfn.XLOOKUP(C97,Kandidaat!J:J,Kandidaat!A:A))","v":""},null,{"$f":"IF(C97=\"\",\"\",_xlfn.XLOOKUP(C97,Kandidaat!J:J,Kandidaat!K:K))","v":""},{"$f":"IF(D97=\"\",\"\",_xlfn.XLOOKUP(D97,Kandidaat!K:K,Kandidaat!L:L))","v":""}]
[null,{"$f":"IF(C98=\"\",\"\",_xlfn.XLOOKUP(C98,Kandidaat!J:J,Kandidaat!A:A))","v":""},null,{"$f":"IF(C98=\"\",\"\",_xlfn.XLOOKUP(C98,Kandidaat!J:J,Kandidaat!K:K))","v":""},{"$f":"IF(D98=\"\",\"\",_xlfn.XLOOKUP(D98,Kandidaat!K:K,Kandidaat!L:L))","v":""}]
[null,{"$f":"IF(C99=\"\",\"\",_xlfn.XLOOKUP(C99,Kandidaat!J:J,Kandidaat!A:A))","v":""},null,{"$f":"IF(C99=\"\",\"\",_xlfn.XLOOKUP(C99,Kandidaat!J:J,Kandidaat!K:K))","v":""},{"$f":"IF(D99=\"\",\"\",_xlfn.XLOOKUP(D99,Kandidaat!K:K,Kandidaat!L:L))","v":""}]
[null,{"$f":"IF(C100=\"\",\"\",_xlfn.XLOOKUP(C100,Kandidaat!J:J,Kandidaat!A:A))","v":""},null,{"$f":"IF(C100=\"\",\"\",_xlfn.XLOOKUP(C100,Kandidaat!J:J,Kandidaat!K:K))","v":""},{"$f":"IF(D100=\"\",\"\",_xlfn.XLOOKUP(D100,Kandidaat!K:K,Kandidaat!L:L))","v":""}]
[null,{"$f":"IF(C101=\"\",\"\",_xlfn.XLOOKUP(C101,Kandidaat!J:J,Kandidaat!A:A))","v":""},null,{"$f":"IF(C101=\"\",\"\",_xlfn.XLOOKUP(C101,Kandidaat!J:J,Kandidaat!K:K))","v":""},{"$f":"IF(D101=\"\",\"\",_xlfn.XLOOKUP(D101,Kandidaat!K:K,Kandidaat!L:L))","v":""}]
[null,{"$f":"IF(C102=\"\",\"\",_xlfn.XLOOKUP(C102,Kandidaat!J:J,Kandidaat!A:A))","v":""},null,{"$f":"IF(C102=\"\",\"\",_xlfn.XLOOKUP(C102,Kandidaat!J:J,Kandidaat!K:K))","v":""},{"$f":"IF(D102=\"\",\"\",_xlfn.XLOOKUP(D102,Kandidaat!K:K,Kandidaat!L:L))","v":""}]
[null,{"$f":"IF(C103=\"\",\"\",_xlfn.XLOOKUP(C103,Kandidaat!J:J,Kandidaat!A:A))","v":""},null,{"$f":"IF(C103=\"\",\"\",_xlfn.XLOOKUP(C103,Kandidaat!J:J,Kandidaat!K:K))","v":""},{"$f":"IF(D103=\"\",\"\",_xlfn.XLOOKUP(D103,Kandidaat!K:K,Kandidaat!L:L))","v":""}]
[null,{"$f":"IF(C104=\"\",\"\",_xlfn.XLOOKUP(C104,Kandidaat!J:J,Kandidaat!A:A))","v":""},null,{"$f":"IF(C104=\"\",\"\",_xlfn.XLOOKUP(C104,Kandidaat!J:J,Kandidaat!K:K))","v":""},{"$f":"IF(D104=\"\",\"\",_xlfn.XLOOKUP(D104,Kandidaat!K:K,Kandidaat!L:L))","v":""}]
[null,{"$f":"IF(C105=\"\",\"\",_xlfn.XLOOKUP(C105,Kandidaat!J:J,Kandidaat!A:A))","v":""},null,{"$f":"IF(C105=\"\",\"\",_xlfn.XLOOKUP(C105,Kandidaat!J:J,Kandidaat!K:K))","v":""},{"$f":"IF(D105=\"\",\"\",_xlfn.XLOOKUP(D105,Kandidaat!K:K,Kandidaat!L:L))","v":""}]
[null,{"$f":"IF(C106=\"\",\"\",_xlfn.XLOOKUP(C106,Kandidaat!J:J,Kandidaat!A:A))","v":""},null,{"$f":"IF(C106=\"\",\"\",_xlfn.XLOOKUP(C106,Kandidaat!J:J,Kandidaat!K:K))","v":""},{"$f":"IF(D106=\"\",\"\",_xlfn.XLOOKUP(D106,Kandidaat!K:K,Kandidaat!L:L))","v":""}]
[null,{"$f":"IF(C107=\"\",\"\",_xlfn.XLOOKUP(C107,Kandidaat!J:J,Kandidaat!A:A))","v":""},null,{"$f":"IF(C107=\"\",\"\",_xlfn.XLOOKUP(C107,Kandidaat!J:J,Kandidaat!K:K))","v":""},{"$f":"IF(D107=\"\",\"\",_xlfn.XLOOKUP(D107,Kandidaat!K:K,Kandidaat!L:L))","v":""}]
[null,{"$f":"IF(C108=\"\",\"\",_xlfn.XLOOKUP(C108,Kandidaat!J:J,Kandidaat!A:A))","v":""},null,{"$f":"IF(C108=\"\",\"\",_xlfn.XLOOKUP(C108,Kandidaat!J:J,Kandidaat!K:K))","v":""},{"$f":"IF(D108=\"\",\"\",_xlfn.XLOOKUP(D108,Kandidaat!K:K,Kandidaat!L:L))","v":""}]
[null,{"$f":"IF(C109=\"\",\"\",_xlfn.XLOOKUP(C109,Kandidaat!J:J,Kandidaat!A:A))","v":""},null,{"$f":"IF(C109=\"\",\"\",_xlfn.XLOOKUP(C109,Kandidaat!J:J,Kandidaat!K:K))","v":""},{"$f":"IF(D109=\"\",\"\",_xlfn.XLOOKUP(D109,Kandidaat!K:K,Kandidaat!L:L))","v":""}]
[null,{"$f":"IF(C110=\"\",\"\",_xlfn.XLOOKUP(C110,Kandidaat!J:J,Kandidaat!A:A))","v":""},null,{"$f":"IF(C110=\"\",\"\",_xlfn.XLOOKUP(C110,Kandidaat!J:J,Kandidaat!K:K))","v":""},{"$f":"IF(D110=\"\",\"\",_xlfn.XLOOKUP(D110,Kandidaat!K:K,Kandidaat!L:L))","v":""}]
[null,{"$f":"IF(C111=\"\",\"\",_xlfn.XLOOKUP(C111,Kandidaat!J:J,Kandidaat!A:A))","v":""},null,{"$f":"IF(C111=\"\",\"\",_xlfn.XLOOKUP(C111,Kandidaat!J:J,Kandidaat!K:K))","v":""},{"$f":"IF(D111=\"\",\"\",_xlfn.XLOOKUP(D111,Kandidaat!K:K,Kandidaat!L:L))","v":""}]
[null,{"$f":"IF(C112=\"\",\"\",_xlfn.XLOOKUP(C112,Kandidaat!J:J,Kandidaat!A:A))","v":""},null,{"$f":"IF(C112=\"\",\"\",_xlfn.XLOOKUP(C112,Kandidaat!J:J,Kandidaat!K:K))","v":""},{"$f":"IF(D112=\"\",\"\",_xlfn.XLOOKUP(D112,Kandidaat!K:K,Kandidaat!L:L))","v":""}]
[null,{"$f":"IF(C113=\"\",\"\",_xlfn.XLOOKUP(C113,Kandidaat!J:J,Kandidaat!A:A))","v":""},null,{"$f":"IF(C113=\"\",\"\",_xlfn.XLOOKUP(C113,Kandidaat!J:J,Kandidaat!K:K))","v":""},{"$f":"IF(D113=\"\",\"\",_xlfn.XLOOKUP(D113,Kandidaat!K:K,Kandidaat!L:L))","v":""}]
[null,{"$f":"IF(C114=\"\",\"\",_xlfn.XLOOKUP(C114,Kandidaat!J:J,Kandidaat!A:A))","v":""},null,{"$f":"IF(C114=\"\",\"\",_xlfn.XLOOKUP(C114,Kandidaat!J:J,Kandidaat!K:K))","v":""},{"$f":"IF(D114=\"\",\"\",_xlfn.XLOOKUP(D114,Kandidaat!K:K,Kandidaat!L:L))","v":""}]
[null,{"$f":"IF(C115=\"\",\"\",_xlfn.XLOOKUP(C115,Kandidaat!J:J,Kandidaat!A:A))","v":""},null,{"$f":"IF(C115=\"\",\"\",_xlfn.XLOOKUP(C115,Kandidaat!J:J,Kandidaat!K:K))","v":""},{"$f":"IF(D115=\"\",\"\",_xlfn.XLOOKUP(D115,Kandidaat!K:K,Kandidaat!L:L))","v":""}]
[null,{"$f":"IF(C116=\"\",\"\",_xlfn.XLOOKUP(C116,Kandidaat!J:J,Kandidaat!A:A))","v":""},null,{"$f":"IF(C116=\"\",\"\",_xlfn.XLOOKUP(C116,Kandidaat!J:J,Kandidaat!K:K))","v":""},{"$f":"IF(D116=\"\",\"\",_xlfn.XLOOKUP(D116,Kandidaat!K:K,Kandidaat!L:L))","v":""}]
[null,{"$f":"IF(C117=\"\",\"\",_xlfn.XLOOKUP(C117,Kandidaat!J:J,Kandidaat!A:A))","v":""},null,{"$f":"IF(C117=\"\",\"\",_xlfn.XLOOKUP(C117,Kandidaat!J:J,Kandidaat!K:K))","v":""},{"$f":"IF(D117=\"\",\"\",_xlfn.XLOOKUP(D117,Kandidaat!K:K,Kandidaat!L:L))","v":""}]
[null,{"$f":"IF(C118=\"\",\"\",_xlfn.XLOOKUP(C118,Kandidaat!J:J,Kandidaat!A:A))","v":""},null,{"$f":"IF(C118=\"\",\"\",_xlfn.XLOOKUP(C118,Kandidaat!J:J,Kandidaat!K:K))","v":""},{"$f":"IF(D118=\"\",\"\",_xlfn.XLOOKUP(D118,Kandidaat!K:K,Kandidaat!L:L))","v":""}]
[null,{"$f":"IF(C119=\"\",\"\",_xlfn.XLOOKUP(C119,Kandidaat!J:J,Kandidaat!A:A))","v":""},null,{"$f":"IF(C119=\"\",\"\",_xlfn.XLOOKUP(C119,Kandidaat!J:J,Kandidaat!K:K))","v":""},{"$f":"IF(D119=\"\",\"\",_xlfn.XLOOKUP(D119,Kandidaat!K:K,Kandidaat!L:L))","v":""}]
[null,{"$f":"IF(C120=\"\",\"\",_xlfn.XLOOKUP(C120,Kandidaat!J:J,Kandidaat!A:A))","v":""},null,{"$f":"IF(C120=\"\",\"\",_xlfn.XLOOKUP(C120,Kandidaat!J:J,Kandidaat!K:K))","v":""},{"$f":"IF(D120=\"\",\"\",_xlfn.XLOOKUP(D120,Kandidaat!K:K,Kandidaat!L:L))","v":""}]
[null,{"$f":"IF(C121=\"\",\"\",_xlfn.XLOOKUP(C121,Kandidaat!J:J,Kandidaat!A:A))","v":""},null,{"$f":"IF(C121=\"\",\"\",_xlfn.XLOOKUP(C121,Kandidaat!J:J,Kandidaat!K:K))","v":""},{"$f":"IF(D121=\"\",\"\",_xlfn.XLOOKUP(D121,Kandidaat!K:K,Kandidaat!L:L))","v":""}]
[null,{"$f":"IF(C122=\"\",\"\",_xlfn.XLOOKUP(C122,Kandidaat!J:J,Kandidaat!A:A))","v":""},null,{"$f":"IF(C122=\"\",\"\",_xlfn.XLOOKUP(C122,Kandidaat!J:J,Kandidaat!K:K))","v":""},{"$f":"IF(D122=\"\",\"\",_xlfn.XLOOKUP(D122,Kandidaat!K:K,Kandidaat!L:L))","v":""}]
[null,{"$f":"IF(C123=\"\",\"\",_xlfn.XLOOKUP(C123,Kandidaat!J:J,Kandidaat!A:A))","v":""},null,{"$f":"IF(C123=\"\",\"\",_xlfn.XLOOKUP(C123,Kandidaat!J:J,Kandidaat!K:K))","v":""},{"$f":"IF(D123=\"\",\"\",_xlfn.XLOOKUP(D123,Kandidaat!K:K,Kandidaat!L:L))","v":""}]
[null,{"$f":"IF(C124=\"\",\"\",_xlfn.XLOOKUP(C124,Kandidaat!J:J,Kandidaat!A:A))","v":""},null,{"$f":"IF(C124=\"\",\"\",_xlfn.XLOOKUP(C124,Kandidaat!J:J,Kandidaat!K:K))","v":""},{"$f":"IF(D124=\"\",\"\",_xlfn.XLOOKUP(D124,Kandidaat!K:K,Kandidaat!L:L))","v":""}]
[null,{"$f":"IF(C125=\"\",\"\",_xlfn.XLOOKUP(C125,Kandidaat!J:J,Kandidaat!A:A))","v":""},null,{"$f":"IF(C125=\"\",\"\",_xlfn.XLOOKUP(C125,Kandidaat!J:J,Kandidaat!K:K))","v":""},{"$f":"IF(D125=\"\",\"\",_xlfn.XLOOKUP(D125,Kandidaat!K:K,Kandidaat!L:L))","v":""}]
[null,{"$f":"IF(C126=\"\",\"\",_xlfn.XLOOKUP(C126,Kandidaat!J:J,Kandidaat!A:A))","v":""},null,{"$f":"IF(C126=\"\",\"\",_xlfn.XLOOKUP(C126,Kandidaat!J:J,Kandidaat!K:K))","v":""},{"$f":"IF(D126=\"\",\"\",_xlfn.XLOOKUP(D126,Kandidaat!K:K,Kandidaat!L:L))","v":""}]
[null,{"$f":"IF(C127=\"\",\"\",_xlfn.XLOOKUP(C127,Kandidaat!J:J,Kandidaat!A:A))","v":""},null,{"$f":"IF(C127=\"\",\"\",_xlfn.XLOOKUP(C127,Kandidaat!J:J,Kandidaat!K:K))","v":""},{"$f":"IF(D127=\"\",\"\",_xlfn.XLOOKUP(D127,Kandidaat!K:K,Kandidaat!L:L))","v":""}]
[null,{"$f":"IF(C128=\"\",\"\",_xlfn.XLOOKUP(C128,Kandidaat!J:J,Kandidaat!A:A))","v":""},null,{"$f":"IF(C128=\"\",\"\",_xlfn.XLOOKUP(C128,Kandidaat!J:J,Kandidaat!K:K))","v":""},{"$f":"IF(D128=\"\",\"\",_xlfn.XLOOKUP(D128,Kandidaat!K:K,Kandidaat!L:L))","v":""}]
[null,{"$f":"IF(C129=\"\",\"\",_xlfn.XLOOKUP(C129,Kandidaat!J:J,Kandidaat!A:A))","v":""},null,{"$f":"IF(C129=\"\",\"\",_xlfn.XLOOKUP(C129,Kandidaat!J:J,Kandidaat!K:K))","v":""},{"$f":"IF(D129=\"\",\"\",_xlfn.XLOOKUP(D129,Kandidaat!K:K,Kandidaat!L:L))","v":""}]
[null,{"$f":"IF(C130=\"\",\"\",_xlfn.XLOOKUP(C130,Kandidaat!J:J,Kandidaat!A:A))","v":""},null,{"$f":"IF(C130=\"\",\"\",_xlfn.XLOOKUP(C130,Kandidaat!J:J,Kandidaat!K:K))","v":""},{"$f":"IF(D130=\"\",\"\",_xlfn.XLOOKUP(D130,Kandidaat!K:K,Kandidaat!L:L))","v":""}]
[null,{"$f":"IF(C131=\"\",\"\",_xlfn.XLOOKUP(C131,Kandidaat!J:J,Kandidaat!A:A))","v":""},null,{"$f":"IF(C131=\"\",\"\",_xlfn.XLOOKUP(C131,Kandidaat!J:J,Kandidaat!K:K))","v":""},{"$f":"IF(D131=\"\",\"\",_xlfn.XLOOKUP(D131,Kandidaat!K:K,Kandidaat!L:L))","v":""}]
[null,{"$f":"IF(C132=\"\",\"\",_xlfn.XLOOKUP(C132,Kandidaat!J:J,Kandidaat!A:A))","v":""},null,{"$f":"IF(C132=\"\",\"\",_xlfn.XLOOKUP(C132,Kandidaat!J:J,Kandidaat!K:K))","v":""},{"$f":"IF(D132=\"\",\"\",_xlfn.XLOOKUP(D132,Kandidaat!K:K,Kandidaat!L:L))","v":""}]
[null,{"$f":"IF(C133=\"\",\"\",_xlfn.XLOOKUP(C133,Kandidaat!J:J,Kandidaat!A:A))","v":""},null,{"$f":"IF(C133=\"\",\"\",_xlfn.XLOOKUP(C133,Kandidaat!J:J,Kandidaat!K:K))","v":""},{"$f":"IF(D133=\"\",\"\",_xlfn.XLOOKUP(D133,Kandidaat!K:K,Kandidaat!L:L))","v":""}]
[null,{"$f":"IF(C134=\"\",\"\",_xlfn.XLOOKUP(C134,Kandidaat!J:J,Kandidaat!A:A))","v":""},null,{"$f":"IF(C134=\"\",\"\",_xlfn.XLOOKUP(C134,Kandidaat!J:J,Kandidaat!K:K))","v":""},{"$f":"IF(D134=\"\",\"\",_xlfn.XLOOKUP(D134,Kandidaat!K:K,Kandidaat!L:L))","v":""}]
[null,{"$f":"IF(C135=\"\",\"\",_xlfn.XLOOKUP(C135,Kandidaat!J:J,Kandidaat!A:A))","v":""},null,{"$f":"IF(C135=\"\",\"\",_xlfn.XLOOKUP(C135,Kandidaat!J:J,Kandidaat!K:K))","v":""},{"$f":"IF(D135=\"\",\"\",_xlfn.XLOOKUP(D135,Kandidaat!K:K,Kandidaat!L:L))","v":""}]
[null,{"$f":"IF(C136=\"\",\"\",_xlfn.XLOOKUP(C136,Kandidaat!J:J,Kandidaat!A:A))","v":""},null,{"$f":"IF(C136=\"\",\"\",_xlfn.XLOOKUP(C136,Kandidaat!J:J,Kandidaat!K:K))","v":""},{"$f":"IF(D136=\"\",\"\",_xlfn.XLOOKUP(D136,Kandidaat!K:K,Kandidaat!L:L))","v":""}]
[null,{"$f":"IF(C137=\"\",\"\",_xlfn.XLOOKUP(C137,Kandidaat!J:J,Kandidaat!A:A))","v":""},null,{"$f":"IF(C137=\"\",\"\",_xlfn.XLOOKUP(C137,Kandidaat!J:J,Kandidaat!K:K))","v":""},{"$f":"IF(D137=\"\",\"\",_xlfn.XLOOKUP(D137,Kandidaat!K:K,Kandidaat!L:L))","v":""}]
[null,{"$f":"IF(C138=\"\",\"\",_xlfn.XLOOKUP(C138,Kandidaat!J:J,Kandidaat!A:A))","v":""},null,{"$f":"IF(C138=\"\",\"\",_xlfn.XLOOKUP(C138,Kandidaat!J:J,Kandidaat!K:K))","v":""},{"$f":"IF(D138=\"\",\"\",_xlfn.XLOOKUP(D138,Kandidaat!K:K,Kandidaat!L:L))","v":""}]
[null,{"$f":"IF(C139=\"\",\"\",_xlfn.XLOOKUP(C139,Kandidaat!J:J,Kandidaat!A:A))","v":""},null,{"$f":"IF(C139=\"\",\"\",_xlfn.XLOOKUP(C139,Kandidaat!J:J,Kandidaat!K:K))","v":""},{"$f":"IF(D139=\"\",\"\",_xlfn.XLOOKUP(D139,Kandidaat!K:K,Kandidaat!L:L))","v":""}]
[null,{"$f":"IF(C140=\"\",\"\",_xlfn.XLOOKUP(C140,Kandidaat!J:J,Kandidaat!A:A))","v":""},null,{"$f":"IF(C140=\"\",\"\",_xlfn.XLOOKUP(C140,Kandidaat!J:J,Kandidaat!K:K))","v":""},{"$f":"IF(D140=\"\",\"\",_xlfn.XLOOKUP(D140,Kandidaat!K:K,Kandidaat!L:L))","v":""}]
[null,{"$f":"IF(C141=\"\",\"\",_xlfn.XLOOKUP(C141,Kandidaat!J:J,Kandidaat!A:A))","v":""},null,{"$f":"IF(C141=\"\",\"\",_xlfn.XLOOKUP(C141,Kandidaat!J:J,Kandidaat!K:K))","v":""},{"$f":"IF(D141=\"\",\"\",_xlfn.XLOOKUP(D141,Kandidaat!K:K,Kandidaat!L:L))","v":""}]
[null,{"$f":"IF(C142=\"\",\"\",_xlfn.XLOOKUP(C142,Kandidaat!J:J,Kandidaat!A:A))","v":""},null,{"$f":"IF(C142=\"\",\"\",_xlfn.XLOOKUP(C142,Kandidaat!J:J,Kandidaat!K:K))","v":""},{"$f":"IF(D142=\"\",\"\",_xlfn.XLOOKUP(D142,Kandidaat!K:K,Kandidaat!L:L))","v":""}]
[null,{"$f":"IF(C143=\"\",\"\",_xlfn.XLOOKUP(C143,Kandidaat!J:J,Kandidaat!A:A))","v":""},null,{"$f":"IF(C143=\"\",\"\",_xlfn.XLOOKUP(C143,Kandidaat!J:J,Kandidaat!K:K))","v":""},{"$f":"IF(D143=\"\",\"\",_xlfn.XLOOKUP(D143,Kandidaat!K:K,Kandidaat!L:L))","v":""}]
[null,{"$f":"IF(C144=\"\",\"\",_xlfn.XLOOKUP(C144,Kandidaat!J:J,Kandidaat!A:A))","v":""},null,{"$f":"IF(C144=\"\",\"\",_xlfn.XLOOKUP(C144,Kandidaat!J:J,Kandidaat!K:K))","v":""},{"$f":"IF(D144=\"\",\"\",_xlfn.XLOOKUP(D144,Kandidaat!K:K,Kandidaat!L:L))","v":""}]
[null,{"$f":"IF(C145=\"\",\"\",_xlfn.XLOOKUP(C145,Kandidaat!J:J,Kandidaat!A:A))","v":""},null,{"$f":"IF(C145=\"\",\"\",_xlfn.XLOOKUP(C145,Kandidaat!J:J,Kandidaat!K:K))","v":""},{"$f":"IF(D145=\"\",\"\",_xlfn.XLOOKUP(D145,Kandidaat!K:K,Kandidaat!L:L))","v":""}]
[null,{"$f":"IF(C146=\"\",\"\",_xlfn.XLOOKUP(C146,Kandidaat!J:J,Kandidaat!A:A))","v":""},null,{"$f":"IF(C146=\"\",\"\",_xlfn.XLOOKUP(C146,Kandidaat!J:J,Kandidaat!K:K))","v":""},{"$f":"IF(D146=\"\",\"\",_xlfn.XLOOKUP(D146,Kandidaat!K:K,Kandidaat!L:L))","v":""}]
[null,{"$f":"IF(C147=\"\",\"\",_xlfn.XLOOKUP(C147,Kandidaat!J:J,Kandidaat!A:A))","v":""},null,{"$f":"IF(C147=\"\",\"\",_xlfn.XLOOKUP(C147,Kandidaat!J:J,Kandidaat!K:K))","v":""},{"$f":"IF(D147=\"\",\"\",_xlfn.XLOOKUP(D147,Kandidaat!K:K,Kandidaat!L:L))","v":""}]
[null,{"$f":"IF(C148=\"\",\"\",_xlfn.XLOOKUP(C148,Kandidaat!J:J,Kandidaat!A:A))","v":""},null,{"$f":"IF(C148=\"\",\"\",_xlfn.XLOOKUP(C148,Kandidaat!J:J,Kandidaat!K:K))","v":""},{"$f":"IF(D148=\"\",\"\",_xlfn.XLOOKUP(D148,Kandidaat!K:K,Kandidaat!L:L))","v":""}]
[null,{"$f":"IF(C149=\"\",\"\",_xlfn.XLOOKUP(C149,Kandidaat!J:J,Kandidaat!A:A))","v":""},null,{"$f":"IF(C149=\"\",\"\",_xlfn.XLOOKUP(C149,Kandidaat!J:J,Kandidaat!K:K))","v":""},{"$f":"IF(D149=\"\",\"\",_xlfn.XLOOKUP(D149,Kandidaat!K:K,Kandidaat!L:L))","v":""}]
[null,{"$f":"IF(C150=\"\",\"\",_xlfn.XLOOKUP(C150,Kandidaat!J:J,Kandidaat!A:A))","v":""},null,{"$f":"IF(C150=\"\",\"\",_xlfn.XLOOKUP(C150,Kandidaat!J:J,Kandidaat!K:K))","v":""},{"$f":"IF(D150=\"\",\"\",_xlfn.XLOOKUP(D150,Kandidaat!K:K,Kandidaat!L:L))","v":""}]
[null,{"$f":"IF(C151=\"\",\"\",_xlfn.XLOOKUP(C151,Kandidaat!J:J,Kandidaat!A:A))","v":""},null,{"$f":"IF(C151=\"\",\"\",_xlfn.XLOOKUP(C151,Kandidaat!J:J,Kandidaat!K:K))","v":""},{"$f":"IF(D151=\"\",\"\",_xlfn.XLOOKUP(D151,Kandidaat!K:K,Kandidaat!L:L))","v":""}]
[null,{"$f":"IF(C152=\"\",\"\",_xlfn.XLOOKUP(C152,Kandidaat!J:J,Kandidaat!A:A))","v":""},null,{"$f":"IF(C152=\"\",\"\",_xlfn.XLOOKUP(C152,Kandidaat!J:J,Kandidaat!K:K))","v":""},{"$f":"IF(D152=\"\",\"\",_xlfn.XLOOKUP(D152,Kandidaat!K:K,Kandidaat!L:L))","v":""}]
[null,{"$f":"IF(C153=\"\",\"\",_xlfn.XLOOKUP(C153,Kandidaat!J:J,Kandidaat!A:A))","v":""},null,{"$f":"IF(C153=\"\",\"\",_xlfn.XLOOKUP(C153,Kandidaat!J:J,Kandidaat!K:K))","v":""},{"$f":"IF(D153=\"\",\"\",_xlfn.XLOOKUP(D153,Kandidaat!K:K,Kandidaat!L:L))","v":""}]
[null,{"$f":"IF(C154=\"\",\"\",_xlfn.XLOOKUP(C154,Kandidaat!J:J,Kandidaat!A:A))","v":""},null,{"$f":"IF(C154=\"\",\"\",_xlfn.XLOOKUP(C154,Kandidaat!J:J,Kandidaat!K:K))","v":""},{"$f":"IF(D154=\"\",\"\",_xlfn.XLOOKUP(D154,Kandidaat!K:K,Kandidaat!L:L))","v":""}]
[null,{"$f":"IF(C155=\"\",\"\",_xlfn.XLOOKUP(C155,Kandidaat!J:J,Kandidaat!A:A))","v":""},null,{"$f":"IF(C155=\"\",\"\",_xlfn.XLOOKUP(C155,Kandidaat!J:J,Kandidaat!K:K))","v":""},{"$f":"IF(D155=\"\",\"\",_xlfn.XLOOKUP(D155,Kandidaat!K:K,Kandidaat!L:L))","v":""}]
[null,{"$f":"IF(C156=\"\",\"\",_xlfn.XLOOKUP(C156,Kandidaat!J:J,Kandidaat!A:A))","v":""},null,{"$f":"IF(C156=\"\",\"\",_xlfn.XLOOKUP(C156,Kandidaat!J:J,Kandidaat!K:K))","v":""},{"$f":"IF(D156=\"\",\"\",_xlfn.XLOOKUP(D156,Kandidaat!K:K,Kandidaat!L:L))","v":""}]
[null,{"$f":"IF(C157=\"\",\"\",_xlfn.XLOOKUP(C157,Kandidaat!J:J,Kandidaat!A:A))","v":""},null,{"$f":"IF(C157=\"\",\"\",_xlfn.XLOOKUP(C157,Kandidaat!J:J,Kandidaat!K:K))","v":""},{"$f":"IF(D157=\"\",\"\",_xlfn.XLOOKUP(D157,Kandidaat!K:K,Kandidaat!L:L))","v":""}]
[null,{"$f":"IF(C158=\"\",\"\",_xlfn.XLOOKUP(C158,Kandidaat!J:J,Kandidaat!A:A))","v":""},null,{"$f":"IF(C158=\"\",\"\",_xlfn.XLOOKUP(C158,Kandidaat!J:J,Kandidaat!K:K))","v":""},{"$f":"IF(D158=\"\",\"\",_xlfn.XLOOKUP(D158,Kandidaat!K:K,Kandidaat!L:L))","v":""}]
[null,{"$f":"IF(C159=\"\",\"\",_xlfn.XLOOKUP(C159,Kandidaat!J:J,Kandidaat!A:A))","v":""},null,{"$f":"IF(C159=\"\",\"\",_xlfn.XLOOKUP(C159,Kandidaat!J:J,Kandidaat!K:K))","v":""},{"$f":"IF(D159=\"\",\"\",_xlfn.XLOOKUP(D159,Kandidaat!K:K,Kandidaat!L:L))","v":""}]
[null,{"$f":"IF(C160=\"\",\"\",_xlfn.XLOOKUP(C160,Kandidaat!J:J,Kandidaat!A:A))","v":""},null,{"$f":"IF(C160=\"\",\"\",_xlfn.XLOOKUP(C160,Kandidaat!J:J,Kandidaat!K:K))","v":""},{"$f":"IF(D160=\"\",\"\",_xlfn.XLOOKUP(D160,Kandidaat!K:K,Kandidaat!L:L))","v":""}]
[null,{"$f":"IF(C161=\"\",\"\",_xlfn.XLOOKUP(C161,Kandidaat!J:J,Kandidaat!A:A))","v":""},null,{"$f":"IF(C161=\"\",\"\",_xlfn.XLOOKUP(C161,Kandidaat!J:J,Kandidaat!K:K))","v":""},{"$f":"IF(D161=\"\",\"\",_xlfn.XLOOKUP(D161,Kandidaat!K:K,Kandidaat!L:L))","v":""}]
[null,{"$f":"IF(C162=\"\",\"\",_xlfn.XLOOKUP(C162,Kandidaat!J:J,Kandidaat!A:A))","v":""},null,{"$f":"IF(C162=\"\",\"\",_xlfn.XLOOKUP(C162,Kandidaat!J:J,Kandidaat!K:K))","v":""},{"$f":"IF(D162=\"\",\"\",_xlfn.XLOOKUP(D162,Kandidaat!K:K,Kandidaat!L:L))","v":""}]
[null,{"$f":"IF(C163=\"\",\"\",_xlfn.XLOOKUP(C163,Kandidaat!J:J,Kandidaat!A:A))","v":""},null,{"$f":"IF(C163=\"\",\"\",_xlfn.XLOOKUP(C163,Kandidaat!J:J,Kandidaat!K:K))","v":""},{"$f":"IF(D163=\"\",\"\",_xlfn.XLOOKUP(D163,Kandidaat!K:K,Kandidaat!L:L))","v":""}]
[null,{"$f":"IF(C164=\"\",\"\",_xlfn.XLOOKUP(C164,Kandidaat!J:J,Kandidaat!A:A))","v":""},null,{"$f":"IF(C164=\"\",\"\",_xlfn.XLOOKUP(C164,Kandidaat!J:J,Kandidaat!K:K))","v":""},{"$f":"IF(D164=\"\",\"\",_xlfn.XLOOKUP(D164,Kandidaat!K:K,Kandidaat!L:L))","v":""}]
[null,{"$f":"IF(C165=\"\",\"\",_xlfn.XLOOKUP(C165,Kandidaat!J:J,Kandidaat!A:A))","v":""},null,{"$f":"IF(C165=\"\",\"\",_xlfn.XLOOKUP(C165,Kandidaat!J:J,Kandidaat!K:K))","v":""},{"$f":"IF(D165=\"\",\"\",_xlfn.XLOOKUP(D165,Kandidaat!K:K,Kandidaat!L:L))","v":""}]
[null,{"$f":"IF(C166=\"\",\"\",_xlfn.XLOOKUP(C166,Kandidaat!J:J,Kandidaat!A:A))","v":""},null,{"$f":"IF(C166=\"\",\"\",_xlfn.XLOOKUP(C166,Kandidaat!J:J,Kandidaat!K:K))","v":""},{"$f":"IF(D166=\"\",\"\",_xlfn.XLOOKUP(D166,Kandidaat!K:K,Kandidaat!L:L))","v":""}]
[null,{"$f":"IF(C167=\"\",\"\",_xlfn.XLOOKUP(C167,Kandidaat!J:J,Kandidaat!A:A))","v":""},null,{"$f":"IF(C167=\"\",\"\",_xlfn.XLOOKUP(C167,Kandidaat!J:J,Kandidaat!K:K))","v":""},{"$f":"IF(D167=\"\",\"\",_xlfn.XLOOKUP(D167,Kandidaat!K:K,Kandidaat!L:L))","v":""}]
[null,{"$f":"IF(C168=\"\",\"\",_xlfn.XLOOKUP(C168,Kandidaat!J:J,Kandidaat!A:A))","v":""},null,{"$f":"IF(C168=\"\",\"\",_xlfn.XLOOKUP(C168,Kandidaat!J:J,Kandidaat!K:K))","v":""},{"$f":"IF(D168=\"\",\"\",_xlfn.XLOOKUP(D168,Kandidaat!K:K,Kandidaat!L:L))","v":""}]
[null,{"$f":"IF(C169=\"\",\"\",_xlfn.XLOOKUP(C169,Kandidaat!J:J,Kandidaat!A:A))","v":""},null,{"$f":"IF(C169=\"\",\"\",_xlfn.XLOOKUP(C169,Kandidaat!J:J,Kandidaat!K:K))","v":""},{"$f":"IF(D169=\"\",\"\",_xlfn.XLOOKUP(D169,Kandidaat!K:K,Kandidaat!L:L))","v":""}]
[null,{"$f":"IF(C170=\"\",\"\",_xlfn.XLOOKUP(C170,Kandidaat!J:J,Kandidaat!A:A))","v":""},null,{"$f":"IF(C170=\"\",\"\",_xlfn.XLOOKUP(C170,Kandidaat!J:J,Kandidaat!K:K))","v":""},{"$f":"IF(D170=\"\",\"\",_xlfn.XLOOKUP(D170,Kandidaat!K:K,Kandidaat!L:L))","v":""}]
[null,{"$f":"IF(C171=\"\",\"\",_xlfn.XLOOKUP(C171,Kandidaat!J:J,Kandidaat!A:A))","v":""},null,{"$f":"IF(C171=\"\",\"\",_xlfn.XLOOKUP(C171,Kandidaat!J:J,Kandidaat!K:K))","v":""},{"$f":"IF(D171=\"\",\"\",_xlfn.XLOOKUP(D171,Kandidaat!K:K,Kandidaat!L:L))","v":""}]
[null,{"$f":"IF(C172=\"\",\"\",_xlfn.XLOOKUP(C172,Kandidaat!J:J,Kandidaat!A:A))","v":""},null,{"$f":"IF(C172=\"\",\"\",_xlfn.XLOOKUP(C172,Kandidaat!J:J,Kandidaat!K:K))","v":""},{"$f":"IF(D172=\"\",\"\",_xlfn.XLOOKUP(D172,Kandidaat!K:K,Kandidaat!L:L))","v":""}]
[null,{"$f":"IF(C173=\"\",\"\",_xlfn.XLOOKUP(C173,Kandidaat!J:J,Kandidaat!A:A))","v":""},null,{"$f":"IF(C173=\"\",\"\",_xlfn.XLOOKUP(C173,Kandidaat!J:J,Kandidaat!K:K))","v":""},{"$f":"IF(D173=\"\",\"\",_xlfn.XLOOKUP(D173,Kandidaat!K:K,Kandidaat!L:L))","v":""}]
[null,{"$f":"IF(C174=\"\",\"\",_xlfn.XLOOKUP(C174,Kandidaat!J:J,Kandidaat!A:A))","v":""},null,{"$f":"IF(C174=\"\",\"\",_xlfn.XLOOKUP(C174,Kandidaat!J:J,Kandidaat!K:K))","v":""},{"$f":"IF(D174=\"\",\"\",_xlfn.XLOOKUP(D174,Kandidaat!K:K,Kandidaat!L:L))","v":""}]
[null,{"$f":"IF(C175=\"\",\"\",_xlfn.XLOOKUP(C175,Kandidaat!J:J,Kandidaat!A:A))","v":""},null,{"$f":"IF(C175=\"\",\"\",_xlfn.XLOOKUP(C175,Kandidaat!J:J,Kandidaat!K:K))","v":""},{"$f":"IF(D175=\"\",\"\",_xlfn.XLOOKUP(D175,Kandidaat!K:K,Kandidaat!L:L))","v":""}]
[null,{"$f":"IF(C176=\"\",\"\",_xlfn.XLOOKUP(C176,Kandidaat!J:J,Kandidaat!A:A))","v":""},null,{"$f":"IF(C176=\"\",\"\",_xlfn.XLOOKUP(C176,Kandidaat!J:J,Kandidaat!K:K))","v":""},{"$f":"IF(D176=\"\",\"\",_xlfn.XLOOKUP(D176,Kandidaat!K:K,Kandidaat!L:L))","v":""}]
[null,{"$f":"IF(C177=\"\",\"\",_xlfn.XLOOKUP(C177,Kandidaat!J:J,Kandidaat!A:A))","v":""},null,{"$f":"IF(C177=\"\",\"\",_xlfn.XLOOKUP(C177,Kandidaat!J:J,Kandidaat!K:K))","v":""},{"$f":"IF(D177=\"\",\"\",_xlfn.XLOOKUP(D177,Kandidaat!K:K,Kandidaat!L:L))","v":""}]
[null,{"$f":"IF(C178=\"\",\"\",_xlfn.XLOOKUP(C178,Kandidaat!J:J,Kandidaat!A:A))","v":""},null,{"$f":"IF(C178=\"\",\"\",_xlfn.XLOOKUP(C178,Kandidaat!J:J,Kandidaat!K:K))","v":""},{"$f":"IF(D178=\"\",\"\",_xlfn.XLOOKUP(D178,Kandidaat!K:K,Kandidaat!L:L))","v":""}]
[null,{"$f":"IF(C179=\"\",\"\",_xlfn.XLOOKUP(C179,Kandidaat!J:J,Kandidaat!A:A))","v":""},null,{"$f":"IF(C179=\"\",\"\",_xlfn.XLOOKUP(C179,Kandidaat!J:J,Kandidaat!K:K))","v":""},{"$f":"IF(D179=\"\",\"\",_xlfn.XLOOKUP(D179,Kandidaat!K:K,Kandidaat!L:L))","v":""}]
[null,{"$f":"IF(C180=\"\",\"\",_xlfn.XLOOKUP(C180,Kandidaat!J:J,Kandidaat!A:A))","v":""},null,{"$f":"IF(C180=\"\",\"\",_xlfn.XLOOKUP(C180,Kandidaat!J:J,Kandidaat!K:K))","v":""},{"$f":"IF(D180=\"\",\"\",_xlfn.XLOOKUP(D180,Kandidaat!K:K,Kandidaat!L:L))","v":""}]
[null,{"$f":"IF(C181=\"\",\"\",_xlfn.XLOOKUP(C181,Kandidaat!J:J,Kandidaat!A:A))","v":""},null,{"$f":"IF(C181=\"\",\"\",_xlfn.XLOOKUP(C181,Kandidaat!J:J,Kandidaat!K:K))","v":""},{"$f":"IF(D181=\"\",\"\",_xlfn.XLOOKUP(D181,Kandidaat!K:K,Kandidaat!L:L))","v":""}]
[null,{"$f":"IF(C182=\"\",\"\",_xlfn.XLOOKUP(C182,Kandidaat!J:J,Kandidaat!A:A))","v":""},null,{"$f":"IF(C182=\"\",\"\",_xlfn.XLOOKUP(C182,Kandidaat!J:J,Kandidaat!K:K))","v":""},{"$f":"IF(D182=\"\",\"\",_xlfn.XLOOKUP(D182,Kandidaat!K:K,Kandidaat!L:L))","v":""}]
[null,{"$f":"IF(C183=\"\",\"\",_xlfn.XLOOKUP(C183,Kandidaat!J:J,Kandidaat!A:A))","v":""},null,{"$f":"IF(C183=\"\",\"\",_xlfn.XLOOKUP(C183,Kandidaat!J:J,Kandidaat!K:K))","v":""},{"$f":"IF(D183=\"\",\"\",_xlfn.XLOOKUP(D183,Kandidaat!K:K,Kandidaat!L:L))","v":""}]
[null,{"$f":"IF(C184=\"\",\"\",_xlfn.XLOOKUP(C184,Kandidaat!J:J,Kandidaat!A:A))","v":""},null,{"$f":"IF(C184=\"\",\"\",_xlfn.XLOOKUP(C184,Kandidaat!J:J,Kandidaat!K:K))","v":""},{"$f":"IF(D184=\"\",\"\",_xlfn.XLOOKUP(D184,Kandidaat!K:K,Kandidaat!L:L))","v":""}]
[null,{"$f":"IF(C185=\"\",\"\",_xlfn.XLOOKUP(C185,Kandidaat!J:J,Kandidaat!A:A))","v":""},null,{"$f":"IF(C185=\"\",\"\",_xlfn.XLOOKUP(C185,Kandidaat!J:J,Kandidaat!K:K))","v":""},{"$f":"IF(D185=\"\",\"\",_xlfn.XLOOKUP(D185,Kandidaat!K:K,Kandidaat!L:L))","v":""}]
[null,{"$f":"IF(C186=\"\",\"\",_xlfn.XLOOKUP(C186,Kandidaat!J:J,Kandidaat!A:A))","v":""},null,{"$f":"IF(C186=\"\",\"\",_xlfn.XLOOKUP(C186,Kandidaat!J:J,Kandidaat!K:K))","v":""},{"$f":"IF(D186=\"\",\"\",_xlfn.XLOOKUP(D186,Kandidaat!K:K,Kandidaat!L:L))","v":""}]
[null,{"$f":"IF(C187=\"\",\"\",_xlfn.XLOOKUP(C187,Kandidaat!J:J,Kandidaat!A:A))","v":""},null,{"$f":"IF(C187=\"\",\"\",_xlfn.XLOOKUP(C187,Kandidaat!J:J,Kandidaat!K:K))","v":""},{"$f":"IF(D187=\"\",\"\",_xlfn.XLOOKUP(D187,Kandidaat!K:K,Kandidaat!L:L))","v":""}]
[null,{"$f":"IF(C188=\"\",\"\",_xlfn.XLOOKUP(C188,Kandidaat!J:J,Kandidaat!A:A))","v":""},null,{"$f":"IF(C188=\"\",\"\",_xlfn.XLOOKUP(C188,Kandidaat!J:J,Kandidaat!K:K))","v":""},{"$f":"IF(D188=\"\",\"\",_xlfn.XLOOKUP(D188,Kandidaat!K:K,Kandidaat!L:L))","v":""}]
[null,{"$f":"IF(C189=\"\",\"\",_xlfn.XLOOKUP(C189,Kandidaat!J:J,Kandidaat!A:A))","v":""},null,{"$f":"IF(C189=\"\",\"\",_xlfn.XLOOKUP(C189,Kandidaat!J:J,Kandidaat!K:K))","v":""},{"$f":"IF(D189=\"\",\"\",_xlfn.XLOOKUP(D189,Kandidaat!K:K,Kandidaat!L:L))","v":""}]
[null,{"$f":"IF(C190=\"\",\"\",_xlfn.XLOOKUP(C190,Kandidaat!J:J,Kandidaat!A:A))","v":""},null,{"$f":"IF(C190=\"\",\"\",_xlfn.XLOOKUP(C190,Kandidaat!J:J,Kandidaat!K:K))","v":""}]
[null,{"$f":"IF(C191=\"\",\"\",_xlfn.XLOOKUP(C191,Kandidaat!J:J,Kandidaat!A:A))","v":""},null,{"$f":"IF(C191=\"\",\"\",_xlfn.XLOOKUP(C191,Kandidaat!J:J,Kandidaat!K:K))","v":""}]
[null,{"$f":"IF(C192=\"\",\"\",_xlfn.XLOOKUP(C192,Kandidaat!J:J,Kandidaat!A:A))","v":""},null,{"$f":"IF(C192=\"\",\"\",_xlfn.XLOOKUP(C192,Kandidaat!J:J,Kandidaat!K:K))","v":""}]
[null,{"$f":"IF(C193=\"\",\"\",_xlfn.XLOOKUP(C193,Kandidaat!J:J,Kandidaat!A:A))","v":""},null,{"$f":"IF(C193=\"\",\"\",_xlfn.XLOOKUP(C193,Kandidaat!J:J,Kandidaat!K:K))","v":""}]
[null,{"$f":"IF(C194=\"\",\"\",_xlfn.XLOOKUP(C194,Kandidaat!J:J,Kandidaat!A:A))","v":""},null,{"$f":"IF(C194=\"\",\"\",_xlfn.XLOOKUP(C194,Kandidaat!J:J,Kandidaat!K:K))","v":""}]
[null,{"$f":"IF(C195=\"\",\"\",_xlfn.XLOOKUP(C195,Kandidaat!J:J,Kandidaat!A:A))","v":""},null,{"$f":"IF(C195=\"\",\"\",_xlfn.XLOOKUP(C195,Kandidaat!J:J,Kandidaat!K:K))","v":""}]
[null,{"$f":"IF(C196=\"\",\"\",_xlfn.XLOOKUP(C196,Kandidaat!J:J,Kandidaat!A:A))","v":""},null,{"$f":"IF(C196=\"\",\"\",_xlfn.XLOOKUP(C196,Kandidaat!J:J,Kandidaat!K:K))","v":""}]
[null,{"$f":"IF(C197=\"\",\"\",_xlfn.XLOOKUP(C197,Kandidaat!J:J,Kandidaat!A:A))","v":""},null,{"$f":"IF(C197=\"\",\"\",_xlfn.XLOOKUP(C197,Kandidaat!J:J,Kandidaat!K:K))","v":""}]
[null,{"$f":"IF(C198=\"\",\"\",_xlfn.XLOOKUP(C198,Kandidaat!J:J,Kandidaat!A:A))","v":""},null,{"$f":"IF(C198=\"\",\"\",_xlfn.XLOOKUP(C198,Kandidaat!J:J,Kandidaat!K:K))","v":""}]
[null,{"$f":"IF(C199=\"\",\"\",_xlfn.XLOOKUP(C199,Kandidaat!J:J,Kandidaat!A:A))","v":""},null,{"$f":"IF(C199=\"\",\"\",_xlfn.XLOOKUP(C199,Kandidaat!J:J,Kandidaat!K:K))","v":""}]
[null,{"$f":"IF(C200=\"\",\"\",_xlfn.XLOOKUP(C200,Kandidaat!J:J,Kandidaat!A:A))","v":""},null,{"$f":"IF(C200=\"\",\"\",_xlfn.XLOOKUP(C200,Kandidaat!J:J,Kandidaat!K:K))","v":""}]
[null,{"$f":"IF(C201=\"\",\"\",_xlfn.XLOOKUP(C201,Kandidaat!J:J,Kandidaat!A:A))","v":""},null,{"$f":"IF(C201=\"\",\"\",_xlfn.XLOOKUP(C201,Kandidaat!J:J,Kandidaat!K:K))","v":""}]
[null,{"$f":"IF(C202=\"\",\"\",_xlfn.XLOOKUP(C202,Kandidaat!J:J,Kandidaat!A:A))","v":""},null,{"$f":"IF(C202=\"\",\"\",_xlfn.XLOOKUP(C202,Kandidaat!J:J,Kandidaat!K:K))","v":""}]
[null,{"$f":"IF(C203=\"\",\"\",_xlfn.XLOOKUP(C203,Kandidaat!J:J,Kandidaat!A:A))","v":""},null,{"$f":"IF(C203=\"\",\"\",_xlfn.XLOOKUP(C203,Kandidaat!J:J,Kandidaat!K:K))","v":""}]
[null,{"$f":"IF(C204=\"\",\"\",_xlfn.XLOOKUP(C204,Kandidaat!J:J,Kandidaat!A:A))","v":""},null,{"$f":"IF(C204=\"\",\"\",_xlfn.XLOOKUP(C204,Kandidaat!J:J,Kandidaat!K:K))","v":""}]
[null,{"$f":"IF(C205=\"\",\"\",_xlfn.XLOOKUP(C205,Kandidaat!J:J,Kandidaat!A:A))","v":""},null,{"$f":"IF(C205=\"\",\"\",_xlfn.XLOOKUP(C205,Kandidaat!J:J,Kandidaat!K:K))","v":""}]
[null,{"$f":"IF(C206=\"\",\"\",_xlfn.XLOOKUP(C206,Kandidaat!J:J,Kandidaat!A:A))","v":""},null,{"$f":"IF(C206=\"\",\"\",_xlfn.XLOOKUP(C206,Kandidaat!J:J,Kandidaat!K:K))","v":""}]
[null,{"$f":"IF(C207=\"\",\"\",_xlfn.XLOOKUP(C207,Kandidaat!J:J,Kandidaat!A:A))","v":""},null,{"$f":"IF(C207=\"\",\"\",_xlfn.XLOOKUP(C207,Kandidaat!J:J,Kandidaat!K:K))","v":""}]
[null,{"$f":"IF(C208=\"\",\"\",_xlfn.XLOOKUP(C208,Kandidaat!J:J,Kandidaat!A:A))","v":""},null,{"$f":"IF(C208=\"\",\"\",_xlfn.XLOOKUP(C208,Kandidaat!J:J,Kandidaat!K:K))","v":""}]
[null,{"$f":"IF(C209=\"\",\"\",_xlfn.XLOOKUP(C209,Kandidaat!J:J,Kandidaat!A:A))","v":""},null,{"$f":"IF(C209=\"\",\"\",_xlfn.XLOOKUP(C209,Kandidaat!J:J,Kandidaat!K:K))","v":""}]
[null,{"$f":"IF(C210=\"\",\"\",_xlfn.XLOOKUP(C210,Kandidaat!J:J,Kandidaat!A:A))","v":""},null,{"$f":"IF(C210=\"\",\"\",_xlfn.XLOOKUP(C210,Kandidaat!J:J,Kandidaat!K:K))","v":""}]
[null,{"$f":"IF(C211=\"\",\"\",_xlfn.XLOOKUP(C211,Kandidaat!J:J,Kandidaat!A:A))","v":""},null,{"$f":"IF(C211=\"\",\"\",_xlfn.XLOOKUP(C211,Kandidaat!J:J,Kandidaat!K:K))","v":""}]
[null,{"$f":"IF(C212=\"\",\"\",_xlfn.XLOOKUP(C212,Kandidaat!J:J,Kandidaat!A:A))","v":""},null,{"$f":"IF(C212=\"\",\"\",_xlfn.XLOOKUP(C212,Kandidaat!J:J,Kandidaat!K:K))","v":""}]
[null,{"$f":"IF(C213=\"\",\"\",_xlfn.XLOOKUP(C213,Kandidaat!J:J,Kandidaat!A:A))","v":""},null,{"$f":"IF(C213=\"\",\"\",_xlfn.XLOOKUP(C213,Kandidaat!J:J,Kandidaat!K:K))","v":""}]
[null,{"$f":"IF(C214=\"\",\"\",_xlfn.XLOOKUP(C214,Kandidaat!J:J,Kandidaat!A:A))","v":""},null,{"$f":"IF(C214=\"\",\"\",_xlfn.XLOOKUP(C214,Kandidaat!J:J,Kandidaat!K:K))","v":""}]
[null,{"$f":"IF(C215=\"\",\"\",_xlfn.XLOOKUP(C215,Kandidaat!J:J,Kandidaat!A:A))","v":""},null,{"$f":"IF(C215=\"\",\"\",_xlfn.XLOOKUP(C215,Kandidaat!J:J,Kandidaat!K:K))","v":""}]
[null,{"$f":"IF(C216=\"\",\"\",_xlfn.XLOOKUP(C216,Kandidaat!J:J,Kandidaat!A:A))","v":""},null,{"$f":"IF(C216=\"\",\"\",_xlfn.XLOOKUP(C216,Kandidaat!J:J,Kandidaat!K:K))","v":""}]
[null,{"$f":"IF(C217=\"\",\"\",_xlfn.XLOOKUP(C217,Kandidaat!J:J,Kandidaat!A:A))","v":""},null,{"$f":"IF(C217=\"\",\"\",_xlfn.XLOOKUP(C217,Kandidaat!J:J,Kandidaat!K:K))","v":""}]
[null,{"$f":"IF(C218=\"\",\"\",_xlfn.XLOOKUP(C218,Kandidaat!J:J,Kandidaat!A:A))","v":""},null,{"$f":"IF(C218=\"\",\"\",_xlfn.XLOOKUP(C218,Kandidaat!J:J,Kandidaat!K:K))","v":""}]
[null,{"$f":"IF(C219=\"\",\"\",_xlfn.XLOOKUP(C219,Kandidaat!J:J,Kandidaat!A:A))","v":""},null,{"$f":"IF(C219=\"\",\"\",_xlfn.XLOOKUP(C219,Kandidaat!J:J,Kandidaat!K:K))","v":""}]
[null,{"$f":"IF(C220=\"\",\"\",_xlfn.XLOOKUP(C220,Kandidaat!J:J,Kandidaat!A:A))","v":""},null,{"$f":"IF(C220=\"\",\"\",_xlfn.XLOOKUP(C220,Kandidaat!J:J,Kandidaat!K:K))","v":""}]
[null,{"$f":"IF(C221=\"\",\"\",_xlfn.XLOOKUP(C221,Kandidaat!J:J,Kandidaat!A:A))","v":""},null,{"$f":"IF(C221=\"\",\"\",_xlfn.XLOOKUP(C221,Kandidaat!J:J,Kandidaat!K:K))","v":""}]
[null,{"$f":"IF(C222=\"\",\"\",_xlfn.XLOOKUP(C222,Kandidaat!J:J,Kandidaat!A:A))","v":""},null,{"$f":"IF(C222=\"\",\"\",_xlfn.XLOOKUP(C222,Kandidaat!J:J,Kandidaat!K:K))","v":""}]
[null,{"$f":"IF(C223=\"\",\"\",_xlfn.XLOOKUP(C223,Kandidaat!J:J,Kandidaat!A:A))","v":""},null,{"$f":"IF(C223=\"\",\"\",_xlfn.XLOOKUP(C223,Kandidaat!J:J,Kandidaat!K:K))","v":""}]
[null,{"$f":"IF(C224=\"\",\"\",_xlfn.XLOOKUP(C224,Kandidaat!J:J,Kandidaat!A:A))","v":""},null,{"$f":"IF(C224=\"\",\"\",_xlfn.XLOOKUP(C224,Kandidaat!J:J,Kandidaat!K:K))","v":""}]
[null,{"$f":"IF(C225=\"\",\"\",_xlfn.XLOOKUP(C225,Kandidaat!J:J,Kandidaat!A:A))","v":""},null,{"$f":"IF(C225=\"\",\"\",_xlfn.XLOOKUP(C225,Kandidaat!J:J,Kandidaat!K:K))","v":""}]
[null,{"$f":"IF(C226=\"\",\"\",_xlfn.XLOOKUP(C226,Kandidaat!J:J,Kandidaat!A:A))","v":""},null,{"$f":"IF(C226=\"\",\"\",_xlfn.XLOOKUP(C226,Kandidaat!J:J,Kandidaat!K:K))","v":""}]
[null,{"$f":"IF(C227=\"\",\"\",_xlfn.XLOOKUP(C227,Kandidaat!J:J,Kandidaat!A:A))","v":""},null,{"$f":"IF(C227=\"\",\"\",_xlfn.XLOOKUP(C227,Kandidaat!J:J,Kandidaat!K:K))","v":""}]
[null,{"$f":"IF(C228=\"\",\"\",_xlfn.XLOOKUP(C228,Kandidaat!J:J,Kandidaat!A:A))","v":""},null,{"$f":"IF(C228=\"\",\"\",_xlfn.XLOOKUP(C228,Kandidaat!J:J,Kandidaat!K:K))","v":""}]
[null,{"$f":"IF(C229=\"\",\"\",_xlfn.XLOOKUP(C229,Kandidaat!J:J,Kandidaat!A:A))","v":""},null,{"$f":"IF(C229=\"\",\"\",_xlfn.XLOOKUP(C229,Kandidaat!J:J,Kandidaat!K:K))","v":""}]
[null,{"$f":"IF(C230=\"\",\"\",_xlfn.XLOOKUP(C230,Kandidaat!J:J,Kandidaat!A:A))","v":""},null,{"$f":"IF(C230=\"\",\"\",_xlfn.XLOOKUP(C230,Kandidaat!J:J,Kandidaat!K:K))","v":""}]
[null,{"$f":"IF(C231=\"\",\"\",_xlfn.XLOOKUP(C231,Kandidaat!J:J,Kandidaat!A:A))","v":""},null,{"$f":"IF(C231=\"\",\"\",_xlfn.XLOOKUP(C231,Kandidaat!J:J,Kandidaat!K:K))","v":""}]
[null,{"$f":"IF(C232=\"\",\"\",_xlfn.XLOOKUP(C232,Kandidaat!J:J,Kandidaat!A:A))","v":""},null,{"$f":"IF(C232=\"\",\"\",_xlfn.XLOOKUP(C232,Kandidaat!J:J,Kandidaat!K:K))","v":""}]
[null,{"$f":"IF(C233=\"\",\"\",_xlfn.XLOOKUP(C233,Kandidaat!J:J,Kandidaat!A:A))","v":""},null,{"$f":"IF(C233=\"\",\"\",_xlfn.XLOOKUP(C233,Kandidaat!J:J,Kandidaat!K:K))","v":""}]
[null,{"$f":"IF(C234=\"\",\"\",_xlfn.XLOOKUP(C234,Kandidaat!J:J,Kandidaat!A:A))","v":""},null,{"$f":"IF(C234=\"\",\"\",_xlfn.XLOOKUP(C234,Kandidaat!J:J,Kandidaat!K:K))","v":""}]
[null,{"$f":"IF(C235=\"\",\"\",_xlfn.XLOOKUP(C235,Kandidaat!J:J,Kandidaat!A:A))","v":""},null,{"$f":"IF(C235=\"\",\"\",_xlfn.XLOOKUP(C235,Kandidaat!J:J,Kandidaat!K:K))","v":""}]
[null,{"$f":"IF(C236=\"\",\"\",_xlfn.XLOOKUP(C236,Kandidaat!J:J,Kandidaat!A:A))","v":""},null,{"$f":"IF(C236=\"\",\"\",_xlfn.XLOOKUP(C236,Kandidaat!J:J,Kandidaat!K:K))","v":""}]
[null,{"$f":"IF(C237=\"\",\"\",_xlfn.XLOOKUP(C237,Kandidaat!J:J,Kandidaat!A:A))","v":""},null,{"$f":"IF(C237=\"\",\"\",_xlfn.XLOOKUP(C237,Kandidaat!J:J,Kandidaat!K:K))","v":""}]
[null,{"$f":"IF(C238=\"\",\"\",_xlfn.XLOOKUP(C238,Kandidaat!J:J,Kandidaat!A:A))","v":""},null,{"$f":"IF(C238=\"\",\"\",_xlfn.XLOOKUP(C238,Kandidaat!J:J,Kandidaat!K:K))","v":""}]
[null,{"$f":"IF(C239=\"\",\"\",_xlfn.XLOOKUP(C239,Kandidaat!J:J,Kandidaat!A:A))","v":""},null,{"$f":"IF(C239=\"\",\"\",_xlfn.XLOOKUP(C239,Kandidaat!J:J,Kandidaat!K:K))","v":""}]
[null,{"$f":"IF(C240=\"\",\"\",_xlfn.XLOOKUP(C240,Kandidaat!J:J,Kandidaat!A:A))","v":""},null,{"$f":"IF(C240=\"\",\"\",_xlfn.XLOOKUP(C240,Kandidaat!J:J,Kandidaat!K:K))","v":""}]
[null,{"$f":"IF(C241=\"\",\"\",_xlfn.XLOOKUP(C241,Kandidaat!J:J,Kandidaat!A:A))","v":""},null,{"$f":"IF(C241=\"\",\"\",_xlfn.XLOOKUP(C241,Kandidaat!J:J,Kandidaat!K:K))","v":""}]
[null,{"$f":"IF(C242=\"\",\"\",_xlfn.XLOOKUP(C242,Kandidaat!J:J,Kandidaat!A:A))","v":""},null,{"$f":"IF(C242=\"\",\"\",_xlfn.XLOOKUP(C242,Kandidaat!J:J,Kandidaat!K:K))","v":""}]
[null,{"$f":"IF(C243=\"\",\"\",_xlfn.XLOOKUP(C243,Kandidaat!J:J,Kandidaat!A:A))","v":""},null,{"$f":"IF(C243=\"\",\"\",_xlfn.XLOOKUP(C243,Kandidaat!J:J,Kandidaat!K:K))","v":""}]
[null,{"$f":"IF(C244=\"\",\"\",_xlfn.XLOOKUP(C244,Kandidaat!J:J,Kandidaat!A:A))","v":""},null,{"$f":"IF(C244=\"\",\"\",_xlfn.XLOOKUP(C244,Kandidaat!J:J,Kandidaat!K:K))","v":""}]
[null,{"$f":"IF(C245=\"\",\"\",_xlfn.XLOOKUP(C245,Kandidaat!J:J,Kandidaat!A:A))","v":""},null,{"$f":"IF(C245=\"\",\"\",_xlfn.XLOOKUP(C245,Kandidaat!J:J,Kandidaat!K:K))","v":""}]
[null,{"$f":"IF(C246=\"\",\"\",_xlfn.XLOOKUP(C246,Kandidaat!J:J,Kandidaat!A:A))","v":""},null,{"$f":"IF(C246=\"\",\"\",_xlfn.XLOOKUP(C246,Kandidaat!J:J,Kandidaat!K:K))","v":""}]
[null,{"$f":"IF(C247=\"\",\"\",_xlfn.XLOOKUP(C247,Kandidaat!J:J,Kandidaat!A:A))","v":""},null,{"$f":"IF(C247=\"\",\"\",_xlfn.XLOOKUP(C247,Kandidaat!J:J,Kandidaat!K:K))","v":""}]
[null,{"$f":"IF(C248=\"\",\"\",_xlfn.XLOOKUP(C248,Kandidaat!J:J,Kandidaat!A:A))","v":""},null,{"$f":"IF(C248=\"\",\"\",_xlfn.XLOOKUP(C248,Kandidaat!J:J,Kandidaat!K:K))","v":""}]
[null,{"$f":"IF(C249=\"\",\"\",_xlfn.XLOOKUP(C249,Kandidaat!J:J,Kandidaat!A:A))","v":""},null,{"$f":"IF(C249=\"\",\"\",_xlfn.XLOOKUP(C249,Kandidaat!J:J,Kandidaat!K:K))","v":""}]
[null,{"$f":"IF(C250=\"\",\"\",_xlfn.XLOOKUP(C250,Kandidaat!J:J,Kandidaat!A:A))","v":""},null,{"$f":"IF(C250=\"\",\"\",_xlfn.XLOOKUP(C250,Kandidaat!J:J,Kandidaat!K:K))","v":""}]
[null,{"$f":"IF(C251=\"\",\"\",_xlfn.XLOOKUP(C251,Kandidaat!J:J,Kandidaat!A:A))","v":""},null,{"$f":"IF(C251=\"\",\"\",_xlfn.XLOOKUP(C251,Kandidaat!J:J,Kandidaat!K:K))","v":""}]
[null,{"$f":"IF(C252=\"\",\"\",_xlfn.XLOOKUP(C252,Kandidaat!J:J,Kandidaat!A:A))","v":""},null,{"$f":"IF(C252=\"\",\"\",_xlfn.XLOOKUP(C252,Kandidaat!J:J,Kandidaat!K:K))","v":""}]
[null,{"$f":"IF(C253=\"\",\"\",_xlfn.XLOOKUP(C253,Kandidaat!J:J,Kandidaat!A:A))","v":""},null,{"$f":"IF(C253=\"\",\"\",_xlfn.XLOOKUP(C253,Kandidaat!J:J,Kandidaat!K:K))","v":""}]
[null,{"$f":"IF(C254=\"\",\"\",_xlfn.XLOOKUP(C254,Kandidaat!J:J,Kandidaat!A:A))","v":""},null,{"$f":"IF(C254=\"\",\"\",_xlfn.XLOOKUP(C254,Kandidaat!J:J,Kandidaat!K:K))","v":""}]
[null,{"$f":"IF(C255=\"\",\"\",_xlfn.XLOOKUP(C255,Kandidaat!J:J,Kandidaat!A:A))","v":""},null,{"$f":"IF(C255=\"\",\"\",_xlfn.XLOOKUP(C255,Kandidaat!J:J,Kandidaat!K:K))","v":""}]
[null,{"$f":"IF(C256=\"\",\"\",_xlfn.XLOOKUP(C256,Kandidaat!J:J,Kandidaat!A:A))","v":""},null,{"$f":"IF(C256=\"\",\"\",_xlfn.XLOOKUP(C256,Kandidaat!J:J,Kandidaat!K:K))","v":""}]
[null,{"$f":"IF(C257=\"\",\"\",_xlfn.XLOOKUP(C257,Kandidaat!J:J,Kandidaat!A:A))","v":""},null,{"$f":"IF(C257=\"\",\"\",_xlfn.XLOOKUP(C257,Kandidaat!J:J,Kandidaat!K:K))","v":""}]
[null,{"$f":"IF(C258=\"\",\"\",_xlfn.XLOOKUP(C258,Kandidaat!J:J,Kandidaat!A:A))","v":""},null,{"$f":"IF(C258=\"\",\"\",_xlfn.XLOOKUP(C258,Kandidaat!J:J,Kandidaat!K:K))","v":""}]
[null,{"$f":"IF(C259=\"\",\"\",_xlfn.XLOOKUP(C259,Kandidaat!J:J,Kandidaat!A:A))","v":""},null,{"$f":"IF(C259=\"\",\"\",_xlfn.XLOOKUP(C259,Kandidaat!J:J,Kandidaat!K:K))","v":""}]
[null,{"$f":"IF(C260=\"\",\"\",_xlfn.XLOOKUP(C260,Kandidaat!J:J,Kandidaat!A:A))","v":""},null,{"$f":"IF(C260=\"\",\"\",_xlfn.XLOOKUP(C260,Kandidaat!J:J,Kandidaat!K:K))","v":""}]
[null,{"$f":"IF(C261=\"\",\"\",_xlfn.XLOOKUP(C261,Kandidaat!J:J,Kandidaat!A:A))","v":""},null,{"$f":"IF(C261=\"\",\"\",_xlfn.XLOOKUP(C261,Kandidaat!J:J,Kandidaat!K:K))","v":""}]
[null,{"$f":"IF(C262=\"\",\"\",_xlfn.XLOOKUP(C262,Kandidaat!J:J,Kandidaat!A:A))","v":""},null,{"$f":"IF(C262=\"\",\"\",_xlfn.XLOOKUP(C262,Kandidaat!J:J,Kandidaat!K:K))","v":""}]
[null,{"$f":"IF(C263=\"\",\"\",_xlfn.XLOOKUP(C263,Kandidaat!J:J,Kandidaat!A:A))","v":""},null,{"$f":"IF(C263=\"\",\"\",_xlfn.XLOOKUP(C263,Kandidaat!J:J,Kandidaat!K:K))","v":""}]
[null,{"$f":"IF(C264=\"\",\"\",_xlfn.XLOOKUP(C264,Kandidaat!J:J,Kandidaat!A:A))","v":""},null,{"$f":"IF(C264=\"\",\"\",_xlfn.XLOOKUP(C264,Kandidaat!J:J,Kandidaat!K:K))","v":""}]
[null,{"$f":"IF(C265=\"\",\"\",_xlfn.XLOOKUP(C265,Kandidaat!J:J,Kandidaat!A:A))","v":""},null,{"$f":"IF(C265=\"\",\"\",_xlfn.XLOOKUP(C265,Kandidaat!J:J,Kandidaat!K:K))","v":""}]
[null,{"$f":"IF(C266=\"\",\"\",_xlfn.XLOOKUP(C266,Kandidaat!J:J,Kandidaat!A:A))","v":""},null,{"$f":"IF(C266=\"\",\"\",_xlfn.XLOOKUP(C266,Kandidaat!J:J,Kandidaat!K:K))","v":""}]
[null,{"$f":"IF(C267=\"\",\"\",_xlfn.XLOOKUP(C267,Kandidaat!J:J,Kandidaat!A:A))","v":""},null,{"$f":"IF(C267=\"\",\"\",_xlfn.XLOOKUP(C267,Kandidaat!J:J,Kandidaat!K:K))","v":""}]
[null,{"$f":"IF(C268=\"\",\"\",_xlfn.XLOOKUP(C268,Kandidaat!J:J,Kandidaat!A:A))","v":""},null,{"$f":"IF(C268=\"\",\"\",_xlfn.XLOOKUP(C268,Kandidaat!J:J,Kandidaat!K:K))","v":""}]
[null,{"$f":"IF(C269=\"\",\"\",_xlfn.XLOOKUP(C269,Kandidaat!J:J,Kandidaat!A:A))","v":""},null,{"$f":"IF(C269=\"\",\"\",_xlfn.XLOOKUP(C269,Kandidaat!J:J,Kandidaat!K:K))","v":""}]
[null,{"$f":"IF(C270=\"\",\"\",_xlfn.XLOOKUP(C270,Kandidaat!J:J,Kandidaat!A:A))","v":""},null,{"$f":"IF(C270=\"\",\"\",_xlfn.XLOOKUP(C270,Kandidaat!J:J,Kandidaat!K:K))","v":""}]
[null,{"$f":"IF(C271=\"\",\"\",_xlfn.XLOOKUP(C271,Kandidaat!J:J,Kandidaat!A:A))","v":""},null,{"$f":"IF(C271=\"\",\"\",_xlfn.XLOOKUP(C271,Kandidaat!J:J,Kandidaat!K:K))","v":""}]
[null,{"$f":"IF(C272=\"\",\"\",_xlfn.XLOOKUP(C272,Kandidaat!J:J,Kandidaat!A:A))","v":""},null,{"$f":"IF(C272=\"\",\"\",_xlfn.XLOOKUP(C272,Kandidaat!J:J,Kandidaat!K:K))","v":""}]
[null,{"$f":"IF(C273=\"\",\"\",_xlfn.XLOOKUP(C273,Kandidaat!J:J,Kandidaat!A:A))","v":""},null,{"$f":"IF(C273=\"\",\"\",_xlfn.XLOOKUP(C273,Kandidaat!J:J,Kandidaat!K:K))","v":""}]
[null,{"$f":"IF(C274=\"\",\"\",_xlfn.XLOOKUP(C274,Kandidaat!J:J,Kandidaat!A:A))","v":""},null,{"$f":"IF(C274=\"\",\"\",_xlfn.XLOOKUP(C274,Kandidaat!J:J,Kandidaat!K:K))","v":""}]
[null,{"$f":"IF(C275=\"\",\"\",_xlfn.XLOOKUP(C275,Kandidaat!J:J,Kandidaat!A:A))","v":""},null,{"$f":"IF(C275=\"\",\"\",_xlfn.XLOOKUP(C275,Kandidaat!J:J,Kandidaat!K:K))","v":""}]
[null,{"$f":"IF(C276=\"\",\"\",_xlfn.XLOOKUP(C276,Kandidaat!J:J,Kandidaat!A:A))","v":""},null,{"$f":"IF(C276=\"\",\"\",_xlfn.XLOOKUP(C276,Kandidaat!J:J,Kandidaat!K:K))","v":""}]
[null,{"$f":"IF(C277=\"\",\"\",_xlfn.XLOOKUP(C277,Kandidaat!J:J,Kandidaat!A:A))","v":""},null,{"$f":"IF(C277=\"\",\"\",_xlfn.XLOOKUP(C277,Kandidaat!J:J,Kandidaat!K:K))","v":""}]
[null,{"$f":"IF(C278=\"\",\"\",_xlfn.XLOOKUP(C278,Kandidaat!J:J,Kandidaat!A:A))","v":""},null,{"$f":"IF(C278=\"\",\"\",_xlfn.XLOOKUP(C278,Kandidaat!J:J,Kandidaat!K:K))","v":""}]
[null,{"$f":"IF(C279=\"\",\"\",_xlfn.XLOOKUP(C279,Kandidaat!J:J,Kandidaat!A:A))","v":""},null,{"$f":"IF(C279=\"\",\"\",_xlfn.XLOOKUP(C279,Kandidaat!J:J,Kandidaat!K:K))","v":""}]
[null,{"$f":"IF(C280=\"\",\"\",_xlfn.XLOOKUP(C280,Kandidaat!J:J,Kandidaat!A:A))","v":""},null,{"$f":"IF(C280=\"\",\"\",_xlfn.XLOOKUP(C280,Kandidaat!J:J,Kandidaat!K:K))","v":""}]
[null,{"$f":"IF(C281=\"\",\"\",_xlfn.XLOOKUP(C281,Kandidaat!J:J,Kandidaat!A:A))","v":""},null,{"$f":"IF(C281=\"\",\"\",_xlfn.XLOOKUP(C281,Kandidaat!J:J,Kandidaat!K:K))","v":""}]
[null,{"$f":"IF(C282=\"\",\"\",_xlfn.XLOOKUP(C282,Kandidaat!J:J,Kandidaat!A:A))","v":""},null,{"$f":"IF(C282=\"\",\"\",_xlfn.XLOOKUP(C282,Kandidaat!J:J,Kandidaat!K:K))","v":""}]
[null,{"$f":"IF(C283=\"\",\"\",_xlfn.XLOOKUP(C283,Kandidaat!J:J,Kandidaat!A:A))","v":""},null,{"$f":"IF(C283=\"\",\"\",_xlfn.XLOOKUP(C283,Kandidaat!J:J,Kandidaat!K:K))","v":""}]
[null,{"$f":"IF(C284=\"\",\"\",_xlfn.XLOOKUP(C284,Kandidaat!J:J,Kandidaat!A:A))","v":""},null,{"$f":"IF(C284=\"\",\"\",_xlfn.XLOOKUP(C284,Kandidaat!J:J,Kandidaat!K:K))","v":""}]
[null,{"$f":"IF(C285=\"\",\"\",_xlfn.XLOOKUP(C285,Kandidaat!J:J,Kandidaat!A:A))","v":""},null,{"$f":"IF(C285=\"\",\"\",_xlfn.XLOOKUP(C285,Kandidaat!J:J,Kandidaat!K:K))","v":""}]
[null,{"$f":"IF(C286=\"\",\"\",_xlfn.XLOOKUP(C286,Kandidaat!J:J,Kandidaat!A:A))","v":""},null,{"$f":"IF(C286=\"\",\"\",_xlfn.XLOOKUP(C286,Kandidaat!J:J,Kandidaat!K:K))","v":""}]
[null,{"$f":"IF(C287=\"\",\"\",_xlfn.XLOOKUP(C287,Kandidaat!J:J,Kandidaat!A:A))","v":""},null,{"$f":"IF(C287=\"\",\"\",_xlfn.XLOOKUP(C287,Kandidaat!J:J,Kandidaat!K:K))","v":""}]
[null,{"$f":"IF(C288=\"\",\"\",_xlfn.XLOOKUP(C288,Kandidaat!J:J,Kandidaat!A:A))","v":""},null,{"$f":"IF(C288=\"\",\"\",_xlfn.XLOOKUP(C288,Kandidaat!J:J,Kandidaat!K:K))","v":""}]
[null,{"$f":"IF(C289=\"\",\"\",_xlfn.XLOOKUP(C289,Kandidaat!J:J,Kandidaat!A:A))","v":""},null,{"$f":"IF(C289=\"\",\"\",_xlfn.XLOOKUP(C289,Kandidaat!J:J,Kandidaat!K:K))","v":""}]
[null,{"$f":"IF(C290=\"\",\"\",_xlfn.XLOOKUP(C290,Kandidaat!J:J,Kandidaat!A:A))","v":""},null,{"$f":"IF(C290=\"\",\"\",_xlfn.XLOOKUP(C290,Kandidaat!J:J,Kandidaat!K:K))","v":""}]
[null,{"$f":"IF(C291=\"\",\"\",_xlfn.XLOOKUP(C291,Kandidaat!J:J,Kandidaat!A:A))","v":""},null,{"$f":"IF(C291=\"\",\"\",_xlfn.XLOOKUP(C291,Kandidaat!J:J,Kandidaat!K:K))","v":""}]
[null,{"$f":"IF(C292=\"\",\"\",_xlfn.XLOOKUP(C292,Kandidaat!J:J,Kandidaat!A:A))","v":""},null,{"$f":"IF(C292=\"\",\"\",_xlfn.XLOOKUP(C292,Kandidaat!J:J,Kandidaat!K:K))","v":""}]
[null,{"$f":"IF(C293=\"\",\"\",_xlfn.XLOOKUP(C293,Kandidaat!J:J,Kandidaat!A:A))","v":""},null,{"$f":"IF(C293=\"\",\"\",_xlfn.XLOOKUP(C293,Kandidaat!J:J,Kandidaat!K:K))","v":""}]
[null,{"$f":"IF(C294=\"\",\"\",_xlfn.XLOOKUP(C294,Kandidaat!J:J,Kandidaat!A:A))","v":""},null,{"$f":"IF(C294=\"\",\"\",_xlfn.XLOOKUP(C294,Kandidaat!J:J,Kandidaat!K:K))","v":""}]
[null,{"$f":"IF(C295=\"\",\"\",_xlfn.XLOOKUP(C295,Kandidaat!J:J,Kandidaat!A:A))","v":""},null,{"$f":"IF(C295=\"\",\"\",_xlfn.XLOOKUP(C295,Kandidaat!J:J,Kandidaat!K:K))","v":""}]
[null,{"$f":"IF(C296=\"\",\"\",_xlfn.XLOOKUP(C296,Kandidaat!J:J,Kandidaat!A:A))","v":""},null,{"$f":"IF(C296=\"\",\"\",_xlfn.XLOOKUP(C296,Kandidaat!J:J,Kandidaat!K:K))","v":""}]
[null,{"$f":"IF(C297=\"\",\"\",_xlfn.XLOOKUP(C297,Kandidaat!J:J,Kandidaat!A:A))","v":""},null,{"$f":"IF(C297=\"\",\"\",_xlfn.XLOOKUP(C297,Kandidaat!J:J,Kandidaat!K:K))","v":""}]
[null,{"$f":"IF(C298=\"\",\"\",_xlfn.XLOOKUP(C298,Kandidaat!J:J,Kandidaat!A:A))","v":""},null,{"$f":"IF(C298=\"\",\"\",_xlfn.XLOOKUP(C298,Kandidaat!J:J,Kandidaat!K:K))","v":""}]
[null,{"$f":"IF(C299=\"\",\"\",_xlfn.XLOOKUP(C299,Kandidaat!J:J,Kandidaat!A:A))","v":""},null,{"$f":"IF(C299=\"\",\"\",_xlfn.XLOOKUP(C299,Kandidaat!J:J,Kandidaat!K:K))","v":""}]
[null,{"$f":"IF(C300=\"\",\"\",_xlfn.XLOOKUP(C300,Kandidaat!J:J,Kandidaat!A:A))","v":""},null,{"$f":"IF(C300=\"\",\"\",_xlfn.XLOOKUP(C300,Kandidaat!J:J,Kandidaat!K:K))","v":""}]
[null,{"$f":"IF(C301=\"\",\"\",_xlfn.XLOOKUP(C301,Kandidaat!J:J,Kandidaat!A:A))","v":""},null,{"$f":"IF(C301=\"\",\"\",_xlfn.XLOOKUP(C301,Kandidaat!J:J,Kandidaat!K:K))","v":""}]
[null,{"$f":"IF(C302=\"\",\"\",_xlfn.XLOOKUP(C302,Kandidaat!J:J,Kandidaat!A:A))","v":""},null,{"$f":"IF(C302=\"\",\"\",_xlfn.XLOOKUP(C302,Kandidaat!J:J,Kandidaat!K:K))","v":""}]
[null,{"$f":"IF(C303=\"\",\"\",_xlfn.XLOOKUP(C303,Kandidaat!J:J,Kandidaat!A:A))","v":""},null,{"$f":"IF(C303=\"\",\"\",_xlfn.XLOOKUP(C303,Kandidaat!J:J,Kandidaat!K:K))","v":""}]
[null,{"$f":"IF(C304=\"\",\"\",_xlfn.XLOOKUP(C304,Kandidaat!J:J,Kandidaat!A:A))","v":""},null,{"$f":"IF(C304=\"\",\"\",_xlfn.XLOOKUP(C304,Kandidaat!J:J,Kandidaat!K:K))","v":""}]
[null,{"$f":"IF(C305=\"\",\"\",_xlfn.XLOOKUP(C305,Kandidaat!J:J,Kandidaat!A:A))","v":""},null,{"$f":"IF(C305=\"\",\"\",_xlfn.XLOOKUP(C305,Kandidaat!J:J,Kandidaat!K:K))","v":""}]
[null,{"$f":"IF(C306=\"\",\"\",_xlfn.XLOOKUP(C306,Kandidaat!J:J,Kandidaat!A:A))","v":""},null,{"$f":"IF(C306=\"\",\"\",_xlfn.XLOOKUP(C306,Kandidaat!J:J,Kandidaat!K:K))","v":""}]
[null,{"$f":"IF(C307=\"\",\"\",_xlfn.XLOOKUP(C307,Kandidaat!J:J,Kandidaat!A:A))","v":""},null,{"$f":"IF(C307=\"\",\"\",_xlfn.XLOOKUP(C307,Kandidaat!J:J,Kandidaat!K:K))","v":""}]
[null,{"$f":"IF(C308=\"\",\"\",_xlfn.XLOOKUP(C308,Kandidaat!J:J,Kandidaat!A:A))","v":""},null,{"$f":"IF(C308=\"\",\"\",_xlfn.XLOOKUP(C308,Kandidaat!J:J,Kandidaat!K:K))","v":""}]
[null,{"$f":"IF(C309=\"\",\"\",_xlfn.XLOOKUP(C309,Kandidaat!J:J,Kandidaat!A:A))","v":""},null,{"$f":"IF(C309=\"\",\"\",_xlfn.XLOOKUP(C309,Kandidaat!J:J,Kandidaat!K:K))","v":""}]
[null,{"$f":"IF(C310=\"\",\"\",_xlfn.XLOOKUP(C310,Kandidaat!J:J,Kandidaat!A:A))","v":""},null,{"$f":"IF(C310=\"\",\"\",_xlfn.XLOOKUP(C310,Kandidaat!J:J,Kandidaat!K:K))","v":""}]
[null,{"$f":"IF(C311=\"\",\"\",_xlfn.XLOOKUP(C311,Kandidaat!J:J,Kandidaat!A:A))","v":""},null,{"$f":"IF(C311=\"\",\"\",_xlfn.XLOOKUP(C311,Kandidaat!J:J,Kandidaat!K:K))","v":""}]
[null,{"$f":"IF(C312=\"\",\"\",_xlfn.XLOOKUP(C312,Kandidaat!J:J,Kandidaat!A:A))","v":""},null,{"$f":"IF(C312=\"\",\"\",_xlfn.XLOOKUP(C312,Kandidaat!J:J,Kandidaat!K:K))","v":""}]
[null,{"$f":"IF(C313=\"\",\"\",_xlfn.XLOOKUP(C313,Kandidaat!J:J,Kandidaat!A:A))","v":""},null,{"$f":"IF(C313=\"\",\"\",_xlfn.XLOOKUP(C313,Kandidaat!J:J,Kandidaat!K:K))","v":""}]
[null,{"$f":"IF(C314=\"\",\"\",_xlfn.XLOOKUP(C314,Kandidaat!J:J,Kandidaat!A:A))","v":""},null,{"$f":"IF(C314=\"\",\"\",_xlfn.XLOOKUP(C314,Kandidaat!J:J,Kandidaat!K:K))","v":""}]
[null,{"$f":"IF(C315=\"\",\"\",_xlfn.XLOOKUP(C315,Kandidaat!J:J,Kandidaat!A:A))","v":""},null,{"$f":"IF(C315=\"\",\"\",_xlfn.XLOOKUP(C315,Kandidaat!J:J,Kandidaat!K:K))","v":""}]
[null,{"$f":"IF(C316=\"\",\"\",_xlfn.XLOOKUP(C316,Kandidaat!J:J,Kandidaat!A:A))","v":""},null,{"$f":"IF(C316=\"\",\"\",_xlfn.XLOOKUP(C316,Kandidaat!J:J,Kandidaat!K:K))","v":""}]
[null,{"$f":"IF(C317=\"\",\"\",_xlfn.XLOOKUP(C317,Kandidaat!J:J,Kandidaat!A:A))","v":""},null,{"$f":"IF(C317=\"\",\"\",_xlfn.XLOOKUP(C317,Kandidaat!J:J,Kandidaat!K:K))","v":""}]
[null,{"$f":"IF(C318=\"\",\"\",_xlfn.XLOOKUP(C318,Kandidaat!J:J,Kandidaat!A:A))","v":""},null,{"$f":"IF(C318=\"\",\"\",_xlfn.XLOOKUP(C318,Kandidaat!J:J,Kandidaat!K:K))","v":""}]
[null,{"$f":"IF(C319=\"\",\"\",_xlfn.XLOOKUP(C319,Kandidaat!J:J,Kandidaat!A:A))","v":""},null,{"$f":"IF(C319=\"\",\"\",_xlfn.XLOOKUP(C319,Kandidaat!J:J,Kandidaat!K:K))","v":""}]
[null,{"$f":"IF(C320=\"\",\"\",_xlfn.XLOOKUP(C320,Kandidaat!J:J,Kandidaat!A:A))","v":""},null,{"$f":"IF(C320=\"\",\"\",_xlfn.XLOOKUP(C320,Kandidaat!J:J,Kandidaat!K:K))","v":""}]
[null,{"$f":"IF(C321=\"\",\"\",_xlfn.XLOOKUP(C321,Kandidaat!J:J,Kandidaat!A:A))","v":""},null,{"$f":"IF(C321=\"\",\"\",_xlfn.XLOOKUP(C321,Kandidaat!J:J,Kandidaat!K:K))","v":""}]
[null,{"$f":"IF(C322=\"\",\"\",_xlfn.XLOOKUP(C322,Kandidaat!J:J,Kandidaat!A:A))","v":""},null,{"$f":"IF(C322=\"\",\"\",_xlfn.XLOOKUP(C322,Kandidaat!J:J,Kandidaat!K:K))","v":""}]
[null,{"$f":"IF(C323=\"\",\"\",_xlfn.XLOOKUP(C323,Kandidaat!J:J,Kandidaat!A:A))","v":""},null,{"$f":"IF(C323=\"\",\"\",_xlfn.XLOOKUP(C323,Kandidaat!J:J,Kandidaat!K:K))","v":""}]
[null,{"$f":"IF(C324=\"\",\"\",_xlfn.XLOOKUP(C324,Kandidaat!J:J,Kandidaat!A:A))","v":""},null,{"$f":"IF(C324=\"\",\"\",_xlfn.XLOOKUP(C324,Kandidaat!J:J,Kandidaat!K:K))","v":""}]
[null,{"$f":"IF(C325=\"\",\"\",_xlfn.XLOOKUP(C325,Kandidaat!J:J,Kandidaat!A:A))","v":""},null,{"$f":"IF(C325=\"\",\"\",_xlfn.XLOOKUP(C325,Kandidaat!J:J,Kandidaat!K:K))","v":""}]
[null,{"$f":"IF(C326=\"\",\"\",_xlfn.XLOOKUP(C326,Kandidaat!J:J,Kandidaat!A:A))","v":""},null,{"$f":"IF(C326=\"\",\"\",_xlfn.XLOOKUP(C326,Kandidaat!J:J,Kandidaat!K:K))","v":""}]
[null,{"$f":"IF(C327=\"\",\"\",_xlfn.XLOOKUP(C327,Kandidaat!J:J,Kandidaat!A:A))","v":""},null,{"$f":"IF(C327=\"\",\"\",_xlfn.XLOOKUP(C327,Kandidaat!J:J,Kandidaat!K:K))","v":""}]
[null,{"$f":"IF(C328=\"\",\"\",_xlfn.XLOOKUP(C328,Kandidaat!J:J,Kandidaat!A:A))","v":""},null,{"$f":"IF(C328=\"\",\"\",_xlfn.XLOOKUP(C328,Kandidaat!J:J,Kandidaat!K:K))","v":""}]
[null,{"$f":"IF(C329=\"\",\"\",_xlfn.XLOOKUP(C329,Kandidaat!J:J,Kandidaat!A:A))","v":""},null,{"$f":"IF(C329=\"\",\"\",_xlfn.XLOOKUP(C329,Kandidaat!J:J,Kandidaat!K:K))","v":""}]
[null,{"$f":"IF(C330=\"\",\"\",_xlfn.XLOOKUP(C330,Kandidaat!J:J,Kandidaat!A:A))","v":""},null,{"$f":"IF(C330=\"\",\"\",_xlfn.XLOOKUP(C330,Kandidaat!J:J,Kandidaat!K:K))","v":""}]
[null,{"$f":"IF(C331=\"\",\"\",_xlfn.XLOOKUP(C331,Kandidaat!J:J,Kandidaat!A:A))","v":""},null,{"$f":"IF(C331=\"\",\"\",_xlfn.XLOOKUP(C331,Kandidaat!J:J,Kandidaat!K:K))","v":""}]
[null,{"$f":"IF(C332=\"\",\"\",_xlfn.XLOOKUP(C332,Kandidaat!J:J,Kandidaat!A:A))","v":""},null,{"$f":"IF(C332=\"\",\"\",_xlfn.XLOOKUP(C332,Kandidaat!J:J,Kandidaat!K:K))","v":""}]
[null,{"$f":"IF(C333=\"\",\"\",_xlfn.XLOOKUP(C333,Kandidaat!J:J,Kandidaat!A:A))","v":""},null,{"$f":"IF(C333=\"\",\"\",_xlfn.XLOOKUP(C333,Kandidaat!J:J,Kandidaat!K:K))","v":""}]
[null,{"$f":"IF(C334=\"\",\"\",_xlfn.XLOOKUP(C334,Kandidaat!J:J,Kandidaat!A:A))","v":""},null,{"$f":"IF(C334=\"\",\"\",_xlfn.XLOOKUP(C334,Kandidaat!J:J,Kandidaat!K:K))","v":""}]
[null,{"$f":"IF(C335=\"\",\"\",_xlfn.XLOOKUP(C335,Kandidaat!J:J,Kandidaat!A:A))","v":""},null,{"$f":"IF(C335=\"\",\"\",_xlfn.XLOOKUP(C335,Kandidaat!J:J,Kandidaat!K:K))","v":""}]
[null,{"$f":"IF(C336=\"\",\"\",_xlfn.XLOOKUP(C336,Kandidaat!J:J,Kandidaat!A:A))","v":""},null,{"$f":"IF(C336=\"\",\"\",_xlfn.XLOOKUP(C336,Kandidaat!J:J,Kandidaat!K:K))","v":""}]
[null,{"$f":"IF(C337=\"\",\"\",_xlfn.XLOOKUP(C337,Kandidaat!J:J,Kandidaat!A:A))","v":""},null,{"$f":"IF(C337=\"\",\"\",_xlfn.XLOOKUP(C337,Kandidaat!J:J,Kandidaat!K:K))","v":""}]
[null,{"$f":"IF(C338=\"\",\"\",_xlfn.XLOOKUP(C338,Kandidaat!J:J,Kandidaat!A:A))","v":""},null,{"$f":"IF(C338=\"\",\"\",_xlfn.XLOOKUP(C338,Kandidaat!J:J,Kandidaat!K:K))","v":""}]
[null,{"$f":"IF(C339=\"\",\"\",_xlfn.XLOOKUP(C339,Kandidaat!J:J,Kandidaat!A:A))","v":""},null,{"$f":"IF(C339=\"\",\"\",_xlfn.XLOOKUP(C339,Kandidaat!J:J,Kandidaat!K:K))","v":""}]
[null,{"$f":"IF(C340=\"\",\"\",_xlfn.XLOOKUP(C340,Kandidaat!J:J,Kandidaat!A:A))","v":""},null,{"$f":"IF(C340=\"\",\"\",_xlfn.XLOOKUP(C340,Kandidaat!J:J,Kandidaat!K:K))","v":""}]
[null,{"$f":"IF(C341=\"\",\"\",_xlfn.XLOOKUP(C341,Kandidaat!J:J,Kandidaat!A:A))","v":""},null,{"$f":"IF(C341=\"\",\"\",_xlfn.XLOOKUP(C341,Kandidaat!J:J,Kandidaat!K:K))","v":""}]
[null,{"$f":"IF(C342=\"\",\"\",_xlfn.XLOOKUP(C342,Kandidaat!J:J,Kandidaat!A:A))","v":""},null,{"$f":"IF(C342=\"\",\"\",_xlfn.XLOOKUP(C342,Kandidaat!J:J,Kandidaat!K:K))","v":""}]
[null,{"$f":"IF(C343=\"\",\"\",_xlfn.XLOOKUP(C343,Kandidaat!J:J,Kandidaat!A:A))","v":""},null,{"$f":"IF(C343=\"\",\"\",_xlfn.XLOOKUP(C343,Kandidaat!J:J,Kandidaat!K:K))","v":""}]
[null,{"$f":"IF(C344=\"\",\"\",_xlfn.XLOOKUP(C344,Kandidaat!J:J,Kandidaat!A:A))","v":""},null,{"$f":"IF(C344=\"\",\"\",_xlfn.XLOOKUP(C344,Kandidaat!J:J,Kandidaat!K:K))","v":""}]
[null,{"$f":"IF(C345=\"\",\"\",_xlfn.XLOOKUP(C345,Kandidaat!J:J,Kandidaat!A:A))","v":""},null,{"$f":"IF(C345=\"\",\"\",_xlfn.XLOOKUP(C345,Kandidaat!J:J,Kandidaat!K:K))","v":""}]
[null,{"$f":"IF(C346=\"\",\"\",_xlfn.XLOOKUP(C346,Kandidaat!J:J,Kandidaat!A:A))","v":""},null,{"$f":"IF(C346=\"\",\"\",_xlfn.XLOOKUP(C346,Kandidaat!J:J,Kandidaat!K:K))","v":""}]
[null,{"$f":"IF(C347=\"\",\"\",_xlfn.XLOOKUP(C347,Kandidaat!J:J,Kandidaat!A:A))","v":""},null,{"$f":"IF(C347=\"\",\"\",_xlfn.XLOOKUP(C347,Kandidaat!J:J,Kandidaat!K:K))","v":""}]
[null,{"$f":"IF(C348=\"\",\"\",_xlfn.XLOOKUP(C348,Kandidaat!J:J,Kandidaat!A:A))","v":""},null,{"$f":"IF(C348=\"\",\"\",_xlfn.XLOOKUP(C348,Kandidaat!J:J,Kandidaat!K:K))","v":""}]
[null,{"$f":"IF(C349=\"\",\"\",_xlfn.XLOOKUP(C349,Kandidaat!J:J,Kandidaat!A:A))","v":""},null,{"$f":"IF(C349=\"\",\"\",_xlfn.XLOOKUP(C349,Kandidaat!J:J,Kandidaat!K:K))","v":""}]
[null,{"$f":"IF(C350=\"\",\"\",_xlfn.XLOOKUP(C350,Kandidaat!J:J,Kandidaat!A:A))","v":""},null,{"$f":"IF(C350=\"\",\"\",_xlfn.XLOOKUP(C350,Kandidaat!J:J,Kandidaat!K:K))","v":""}]
[null,{"$f":"IF(C351=\"\",\"\",_xlfn.XLOOKUP(C351,Kandidaat!J:J,Kandidaat!A:A))","v":""},null,{"$f":"IF(C351=\"\",\"\",_xlfn.XLOOKUP(C351,Kandidaat!J:J,Kandidaat!K:K))","v":""}]
[null,{"$f":"IF(C352=\"\",\"\",_xlfn.XLOOKUP(C352,Kandidaat!J:J,Kandidaat!A:A))","v":""},null,{"$f":"IF(C352=\"\",\"\",_xlfn.XLOOKUP(C352,Kandidaat!J:J,Kandidaat!K:K))","v":""}]
[null,{"$f":"IF(C353=\"\",\"\",_xlfn.XLOOKUP(C353,Kandidaat!J:J,Kandidaat!A:A))","v":""},null,{"$f":"IF(C353=\"\",\"\",_xlfn.XLOOKUP(C353,Kandidaat!J:J,Kandidaat!K:K))","v":""}]
[null,{"$f":"IF(C354=\"\",\"\",_xlfn.XLOOKUP(C354,Kandidaat!J:J,Kandidaat!A:A))","v":""}]

{"sheet":"Instellingen","index":5,"n_rows":29,"n_cols":26,"rows_kept":29,"cut":false,"hidden":false,"merged":[]}
[3]
[null,null,"Bron sollicitatie","Aantal",null,"Type kandidaat",null,null,"Statussen kandidaten","Aantal",null,null,"Interviewer / Medewerker / Contactpersoon",null,null,"Externe partij",null,null,null,"Kandidaat score",null,null,"Vacature status",null,null,"Ondernomen acties vacature"]
[null,null,"Website",{"$f":"COUNTIFS(Kandidaat!$B$4:$B$995,C3)","v":0},null,"Vacature",null,null,"Gescreened",{"$f":"COUNTIFS(Kandidaat!$F$4:$F$995,I3)","v":0},null,null,"A",null,null,"Nee",null,null,null,"1- Niet acceptabel",null,null,"Open",null,null,"Indeed"]
[null,null,"Indeed",{"$f":"COUNTIFS(Kandidaat!$B$4:$B$995,C4)","v":0},null,"Open sollicitatie",null,null,"Doorgestuurd medebeoordelaar",{"$f":"COUNTIFS(Kandidaat!$F$4:$F$995,I4)","v":0},null,null,"B",null,null,"Alpha Recruiters",null,null,null,"2- Acceptabel",null,null,"Vervuld",null,null,"LinkedIn"]
[null,null,"LinkedIn",{"$f":"COUNTIFS(Kandidaat!$B$4:$B$995,C5)","v":0},null,null,null,null,"Uitgenodigd interview",{"$f":"COUNTIFS(Kandidaat!$F$4:$F$995,I5)","v":0},null,null,"C",null,null,"Beta Recruiters",null,null,null,"3- Goede kandidaat",null,null,"Geannuleerd",null,null,"Facebook"]
[null,null,"Telefonisch",{"$f":"COUNTIFS(Kandidaat!$B$4:$B$995,C6)","v":0},null,null,null,null,"Referentie check",{"$f":"COUNTIFS(Kandidaat!$F$4:$F$995,I6)","v":0},null,null,null,null,null,null,null,null,null,"4- Uitstekende kandidaat",null,null,null,null,null,"Website"]
[null,null,"Banensite.nl",{"$f":"COUNTIFS(Kandidaat!$B$4:$B$995,C7)","v":0},null,null,null,null,"Eerste gesprek",{"$f":"COUNTIFS(Kandidaat!$F$4:$F$995,I7)","v":0},null,null,null,null,null,null,null,null,null,null,null,null,null,null,null,"Recruiter"]
[null,null,"Banensite2.nl",{"$f":"COUNTIFS(Kandidaat!$B$4:$B$995,C8)","v":0},null,null,null,null,"Tweede gesprek",{"$f":"COUNTIFS(Kandidaat!$F$4:$F$995,I8)","v":0},null,null,null,null,null,null,null,null,null,null,null,null,null,null,null,"banensite.nl"]
[null,null,"Banensite3.nl",{"$f":"COUNTIFS(Kandidaat!$B$4:$B$995,C9)","v":0},null,null,null,null,"Arbeidsvoorwaarden gesprek",{"$f":"COUNTIFS(Kandidaat!$F$4:$F$995,I9)","v":0}]
[null,null,null,{"$f":"COUNTIFS(Kandidaat!$B$4:$B$995,C10)","v":0},null,null,null,null,"Aangenomen",{"$f":"COUNTIFS(Kandidaat!$F$4:$F$995,I10)","v":0}]
[null,null,null,{"$f":"COUNTIFS(Kandidaat!$B$4:$B$995,C11)","v":0},null,null,null,null,"Afgewezen",{"$f":"COUNTIFS(Kandidaat!$F$4:$F$995,I11)","v":0}]
[null,null,null,{"$f":"COUNTIFS(Kandidaat!$B$4:$B$995,C12)","v":0},null,null,null,null,null,{"$f":"COUNTIFS(Kandidaat!$F$4:$F$995,I12)","v":0}]
[null,null,null,{"$f":"COUNTIFS(Kandidaat!$B$4:$B$995,C13)","v":0},null,null,null,null,null,{"$f":"COUNTIFS(Kandidaat!$F$4:$F$995,I13)","v":0}]
[null,null,null,{"$f":"COUNTIFS(Kandidaat!$B$4:$B$995,C14)","v":0},null,null,null,null,null,{"$f":"COUNTIFS(Kandidaat!$F$4:$F$995,I14)","v":0}]
[null,null,null,{"$f":"COUNTIFS(Kandidaat!$B$4:$B$995,C15)","v":0},null,null,null,null,null,{"$f":"COUNTIFS(Kandidaat!$F$4:$F$995,I15)","v":0}]
[null,null,null,{"$f":"COUNTIFS(Kandidaat!$B$4:$B$995,C16)","v":0},null,null,null,null,null,{"$f":"COUNTIFS(Kandidaat!$F$4:$F$995,I16)","v":0}]
[null,null,null,{"$f":"COUNTIFS(Kandidaat!$B$4:$B$995,C17)","v":0},null,null,null,null,null,{"$f":"COUNTIFS(Kandidaat!$F$4:$F$995,I17)","v":0}]
[null,null,null,{"$f":"COUNTIFS(Kandidaat!$B$4:$B$995,C18)","v":0},null,null,null,null,null,{"$f":"COUNTIFS(Kandidaat!$F$4:$F$995,I18)","v":0}]
[null,null,null,{"$f":"COUNTIFS(Kandidaat!$B$4:$B$995,C19)","v":0},null,null,null,null,null,{"$f":"COUNTIFS(Kandidaat!$F$4:$F$995,I19)","v":0}]
[null,null,null,{"$f":"COUNTIFS(Kandidaat!$B$4:$B$995,C20)","v":0},null,null,null,null,null,{"$f":"COUNTIFS(Kandidaat!$F$4:$F$995,I20)","v":0}]
[null,null,null,{"$f":"COUNTIFS(Kandidaat!$B$4:$B$995,C21)","v":0},null,null,null,null,null,{"$f":"COUNTIFS(Kandidaat!$F$4:$F$995,I21)","v":0}]
[null,null,null,{"$f":"COUNTIFS(Kandidaat!$B$4:$B$995,C22)","v":0},null,null,null,null,null,{"$f":"COUNTIFS(Kandidaat!$F$4:$F$995,I22)","v":0}]
[null,null,null,{"$f":"COUNTIFS(Kandidaat!$B$4:$B$995,C23)","v":0},null,null,null,null,null,{"$f":"COUNTIFS(Kandidaat!$F$4:$F$995,I23)","v":0}]
[null,null,null,{"$f":"COUNTIFS(Kandidaat!$B$4:$B$995,C24)","v":0},null,null,null,null,null,{"$f":"COUNTIFS(Kandidaat!$F$4:$F$995,I24)","v":0}]
[null,null,null,{"$f":"COUNTIFS(Kandidaat!$B$4:$B$995,C25)","v":0},null,null,null,null,null,{"$f":"COUNTIFS(Kandidaat!$F$4:$F$995,I25)","v":0}]
[null,null,null,{"$f":"COUNTIFS(Kandidaat!$B$4:$B$995,C26)","v":0},null,null,null,null,null,{"$f":"COUNTIFS(Kandidaat!$F$4:$F$995,I26)","v":0}]
[null,null,null,{"$f":"COUNTIFS(Kandidaat!$B$4:$B$995,C27)","v":0},null,null,null,null,null,{"$f":"COUNTIFS(Kandidaat!$F$4:$F$995,I27)","v":0}]
[null,null,null,{"$f":"COUNTIFS(Kandidaat!$B$4:$B$995,C28)","v":0},null,null,null,null,null,{"$f":"COUNTIFS(Kandidaat!$F$4:$F$995,I28)","v":0}]
[null,null,null,{"$f":"COUNTIFS(Kandidaat!$B$4:$B$995,C29)","v":0},null,null,null,null,null,{"$f":"COUNTIFS(Kandidaat!$F$4:$F$995,I29)","v":0}]

{"sheet":"Kandidaat Archief","index":6,"n_rows":3,"n_cols":16,"rows_kept":3,"cut":false,"hidden":false,"merged":[]}
[]
[]
["Naam","Bron sollicitatie","Type kandidaat","Datum sollicitatie","Vacature","Status","E-mail","Telefoonnummer","Kandidaat score","Datum sollicitatie-gesprek","Interviewer/ Medewerker","tweede Interviewer/ Medewerker","Externe partij","Uren beschikbaar","Salarisindicatie kandidaat","Feedback/Opmerkingen"]